{"text_format":"1","workbook":"xlsx","n_sheets":2,"sheets":["enter","net product"],"not_rendered":{"charts":0,"images":0,"macros":1,"external_links":0,"defined_names":0,"comments":0,"pivot_tables":0},"unopened":[],"bounds":{"document_bytes":16777216,"sheet_cells":100000,"rows_first":2000,"rows_last":500,"rows_between":2000,"halvings":0,"cell_chars":16384,"cell_head_chars":4096},"cells_cut":0,"cells_raw":0,"read":"whole","date_system":"1900"}

{"sheet":"enter","index":0,"n_rows":173,"n_cols":6,"rows_kept":173,"cut":false,"hidden":false,"merged":[]}
["التخطيط والمتابعة "]
["   التاريخ ","2021-10-05",null,null,{"$f":"MONTH(B2)","v":10}]
["بعده"]
["   كود الشركة",1,"اسم الشركة","اكاي",{"$f":"DAY(B$2)","v":5},{"$f":"MONTH(enter!$B$2)&enter!D4&enter!D7&enter!D17","v":"10اكايمروحة استاند عادة 18\"دريم"}]
["   كود الخط",1,"اسم المشرف","بنداري"]
["  القوة ",20]
["   كود المنتج",1,"اسم المنتج","مروحة استاند عادة 18\""]
["   كود الماركة",1,"اسم الماركة ","دريم"]
["   المعدل",7]
["   كمية الإنتاج المحقق",600,"الزمن",6,"زمن التوقف","ملاحظات "]
["   كود التوقف",1,"سبب التوقف","تغيير منتج",1]
["بعده"]
["   كود الشركة",1,"اسم الشركة","اكاي",{"$f":"DAY(B$2)","v":5},{"$f":"MONTH(enter!$B$2)&enter!D13&enter!D16&enter!D26","v":"10اكايمروحة حائط عادة 18\"دريم"}]
["   كود الخط",2,"اسم المشرف","محمود"]
["  القوة ",20]
["   كود المنتج",1,"اسم المنتج","مروحة حائط عادة 18\""]
["   كود الماركة",1,"اسم الماركة ","دريم"]
["   المعدل",7]
["   كمية الإنتاج المحقق",600,"الزمن",5,"زمن التوقف","ملاحظات "]
["   كود التوقف",1,"سبب التوقف","تغيير منتج",2]
["بعده"]
["   كود الشركة",1,"اسم الشركة","اكاي",{"$f":"DAY(B$2)","v":5},{"$f":"MONTH(enter!$B$2)&enter!D22&enter!D25&enter!D35","v":"10اكايمبرد"}]
["   كود الخط",3,"اسم المشرف","محمود"]
["  القوة ",20]
["   كود المنتج",1,"اسم المنتج","مبرد"]
["   كود الماركة",1,"اسم الماركة ","دريم"]
["   المعدل",7]
["   كمية الإنتاج المحقق",150,"الزمن",7,"زمن التوقف","ملاحظات "]
["   كود التوقف",1,"سبب التوقف",null,0]
["بعده"]
["   كود الشركة",null,"اسم الشركة",null,{"$f":"DAY(B$2)","v":5},{"$f":"MONTH(enter!$B$2)&enter!D31&enter!D34&enter!D44","v":"10"}]
["   كود الخط",null,"اسم المشرف"]
["  القوة "]
["   كود المنتج",null,"اسم المنتج"]
["   كود الماركة",null,"اسم الماركة "]
["   المعدل"]
["   كمية الإنتاج المحقق",null,"الزمن",null,"زمن التوقف","ملاحظات "]
["   كود التوقف",null,"سبب التوقف"]
["بعده"]
["   كود الشركة",null,"اسم الشركة",null,{"$f":"DAY(B$2)","v":5},{"$f":"MONTH(enter!$B$2)&enter!D40&enter!D43&enter!D53","v":"10"}]
["   كود الخط",null,"اسم المشرف"]
["  القوة "]
["   كود المنتج",null,"اسم المنتج"]
["   كود الماركة",null,"اسم الماركة "]
["   المعدل"]
["   كمية الإنتاج المحقق",null,"الزمن",null,"زمن التوقف","ملاحظات "]
["   كود التوقف",null,"سبب التوقف"]
["بعده"]
["   كود الشركة",null,"اسم الشركة",null,{"$f":"DAY(B$2)","v":5},{"$f":"MONTH(enter!$B$2)&enter!D49&enter!D52&enter!D62","v":"10"}]
["   كود الخط",null,"اسم المشرف"]
["  القوة "]
["   كود المنتج",null,"اسم المنتج"]
["   كود الماركة",null,"اسم الماركة "]
["   المعدل"]
["   كمية الإنتاج المحقق",null,"الزمن",null,"زمن التوقف","ملاحظات "]
["   كود التوقف",null,"سبب التوقف"]
["بعده"]
["   كود الشركة",null,"اسم الشركة",null,{"$f":"DAY(B$2)","v":5},{"$f":"MONTH(enter!$B$2)&enter!D58&enter!D61&enter!D71","v":"10"}]
["   كود الخط",null,"اسم المشرف"]
["  القوة "]
["   كود المنتج",null,"اسم المنتج"]
["   كود الماركة",null,"اسم الماركة "]
["   المعدل"]
["   كمية الإنتاج المحقق",null,"الزمن",null,"زمن التوقف","ملاحظات "]
["   كود التوقف",null,"سبب التوقف"]
["بعده"]
["   كود الشركة",null,"اسم الشركة",null,{"$f":"DAY(B$2)","v":5},{"$f":"MONTH(enter!$B$2)&enter!D67&enter!D70&enter!D80","v":"10"}]
["   كود الخط",null,"اسم المشرف"]
["  القوة "]
["   كود المنتج",null,"اسم المنتج"]
["   كود الماركة",null,"اسم الماركة "]
["   المعدل"]
["   كمية الإنتاج المحقق",null,"الزمن",null,"زمن التوقف","ملاحظات "]
["   كود التوقف",null,"سبب التوقف"]
["بعده"]
["   كود الشركة",null,"اسم الشركة",null,{"$f":"DAY(B$2)","v":5},{"$f":"MONTH(enter!$B$2)&enter!D76&enter!D79&enter!D89","v":"10"}]
["   كود الخط",null,"اسم المشرف"]
["  القوة "]
["   كود المنتج",null,"اسم المنتج"]
["   كود الماركة",null,"اسم الماركة "]
["   المعدل"]
["   كمية الإنتاج المحقق",null,"الزمن",null,"زمن التوقف","ملاحظات "]
["   كود التوقف",null,"سبب التوقف"]
["بعده"]
["   كود الشركة",null,"اسم الشركة",null,{"$f":"DAY(B$2)","v":5},{"$f":"MONTH(enter!$B$2)&enter!D85&enter!D88&enter!D98","v":"10"}]
["   كود الخط",null,"اسم المشرف"]
["  القوة "]
["   كود المنتج",null,"اسم المنتج"]
["   كود الماركة",null,"اسم الماركة "]
["   المعدل"]
["   كمية الإنتاج المحقق",null,"الزمن",null,"زمن التوقف","ملاحظات "]
["   كود التوقف",null,"سبب التوقف"]
["بعده"]
["   كود الشركة",null,"اسم الشركة",null,{"$f":"DAY(B$2)","v":5},{"$f":"MONTH(enter!$B$2)&enter!D94&enter!D97&enter!D107","v":"10"}]
["   كود الخط",null,"اسم المشرف"]
["  القوة "]
["   كود المنتج",null,"اسم المنتج"]
["   كود الماركة",null,"اسم الماركة "]
["   المعدل"]
["   كمية الإنتاج المحقق",null,"الزمن",null,"زمن التوقف","ملاحظات "]
["   كود التوقف",null,"سبب التوقف"]
["بعده"]
["   كود الشركة",null,"اسم الشركة",null,{"$f":"DAY(B$2)","v":5},{"$f":"MONTH(enter!$B$2)&enter!D103&enter!D106&enter!D116","v":"10"}]
["   كود الخط",null,"اسم المشرف"]
["  القوة "]
["   كود المنتج",null,"اسم المنتج"]
["   كود الماركة",null,"اسم الماركة "]
["   المعدل"]
["   كمية الإنتاج المحقق",null,"الزمن",null,"زمن التوقف","ملاحظات "]
["   كود التوقف",null,"سبب التوقف"]
["بعده"]
["   كود الشركة",null,"اسم الشركة",null,{"$f":"DAY(B$2)","v":5},{"$f":"MONTH(enter!$B$2)&enter!D112&enter!D115&enter!D125","v":"10"}]
["   كود الخط",null,"اسم المشرف"]
["  القوة "]
["   كود المنتج",null,"اسم المنتج"]
["   كود الماركة",null,"اسم الماركة "]
["   المعدل"]
["   كمية الإنتاج المحقق",null,"الزمن",null,"زمن التوقف","ملاحظات "]
["   كود التوقف",null,"سبب التوقف"]
["بعده"]
["   كود الشركة",null,"اسم الشركة",null,{"$f":"DAY(B$2)","v":5},{"$f":"MONTH(enter!$B$2)&enter!D121&enter!D124&enter!D134","v":"10"}]
["   كود الخط",null,"اسم المشرف"]
["  القوة "]
["   كود المنتج",null,"اسم المنتج"]
["   كود الماركة",null,"اسم الماركة "]
["   المعدل"]
["   كمية الإنتاج المحقق",null,"الزمن",null,"زمن التوقف","ملاحظات "]
["   كود التوقف",null,"سبب التوقف"]
["بعده"]
["   كود الشركة",null,"اسم الشركة",null,{"$f":"DAY(B$2)","v":5},{"$f":"MONTH(enter!$B$2)&enter!D130&enter!D133&enter!D143","v":"10"}]
["   كود الخط",null,"اسم المشرف"]
["  القوة "]
["   كود المنتج",null,"اسم المنتج"]
["   كود الماركة",null,"اسم الماركة "]
["   المعدل"]
["   كمية الإنتاج المحقق",null,"الزمن",null,"زمن التوقف","ملاحظات "]
["   كود التوقف",null,"سبب التوقف"]
["بعده"]
["   كود الشركة",null,"اسم الشركة",null,{"$f":"DAY(B$2)","v":5},{"$f":"MONTH(enter!$B$2)&enter!D139&enter!D142&enter!D152","v":"10"}]
["   كود الخط",null,"اسم المشرف"]
["  القوة "]
["   كود المنتج",null,"اسم المنتج"]
["   كود الماركة",null,"اسم الماركة "]
["   المعدل"]
["   كمية الإنتاج المحقق",null,"الزمن",null,"زمن التوقف","ملاحظات "]
["   كود التوقف",null,"سبب التوقف"]
["بعده"]
["   كود الشركة",null,"اسم الشركة",null,{"$f":"DAY(B$2)","v":5},{"$f":"MONTH(enter!$B$2)&enter!D148&enter!D151&enter!D161","v":"10"}]
["   كود الخط",null,"اسم المشرف"]
["  القوة "]
["   كود المنتج",null,"اسم المنتج"]
["   كود الماركة",null,"اسم الماركة "]
["   المعدل"]
["   كمية الإنتاج المحقق",null,"الزمن",null,"زمن التوقف","ملاحظات "]
["   كود التوقف",null,"سبب التوقف"]
["بعده"]
["   كود الشركة",null,"اسم الشركة",null,{"$f":"DAY(B$2)","v":5},{"$f":"MONTH(enter!$B$2)&enter!D157&enter!D160&enter!D170","v":"10"}]
["   كود الخط",null,"اسم المشرف"]
["  القوة "]
["   كود المنتج",null,"اسم المنتج"]
["   كود الماركة",null,"اسم الماركة "]
["   المعدل"]
["   كمية الإنتاج المحقق",null,"الزمن",null,"زمن التوقف","ملاحظات "]
["   كود التوقف",null,"سبب التوقف"]
["بعده"]
["   كود الشركة",null,"اسم الشركة",null,{"$f":"DAY(B$2)","v":5},{"$f":"MONTH(enter!$B$2)&enter!D166&enter!D169&enter!D179","v":"10"}]
["   كود الخط",null,"اسم المشرف"]
["  القوة "]
["   كود المنتج",null,"اسم المنتج"]
["   كود الماركة",null,"اسم الماركة "]
["   المعدل"]
["   كمية الإنتاج المحقق",null,"الزمن",null,"زمن التوقف","ملاحظات "]
["   كود التوقف",null,"سبب التوقف"]

{"sheet":"net product","index":1,"n_rows":344,"n_cols":38,"rows_kept":344,"cut":false,"hidden":false,"merged":[]}
[null,null,null,null,null,null,{"$f":"COLUMN()","v":7},null,null,null,null,null,null,null,null,null,null,null,null,null,null,null,null,null,null,null,null,null,null,null,null,null,null,null,null,null,{"$f":"COLUMN()","v":37}]
[]
[]
["الشهر","الشركة","كود المنتج","اسم المنتج","الماركة","الإنتاج ",1,2,3,4,5,6,7,8,9,10,11,12,13,14,15,16,17,18,19,20,21,22,23,24,25,26,27,28,29,30,31,"all"]
[10,"اكاي",1,"مروحة استاند عادة 18\"","دريم",{"$f":"SUM(G5:AK5)","v":600},null,null,null,null,600,null,null,null,null,null,null,null,null,null,null,null,null,null,null,null,null,null,null,null,null,null,null,null,null,null,null,{"$f":"A5&B5&D5&E5","v":"10اكايمروحة استاند عادة 18\"دريم"}]
[10,"بنداري",1,"دريم",null,{"$f":"SUM(G6:AK6)","v":0},null,null,null,null,null,null,null,null,null,null,null,null,null,null,null,null,null,null,null,null,null,null,null,null,null,null,null,null,null,null,null,{"$f":"A6&B6&D6&E6","v":"10بنداريدريم"}]
[10,null,7,null,6,{"$f":"SUM(G7:AK7)","v":0},null,null,null,null,null,null,null,null,null,null,null,null,null,null,null,null,null,null,null,null,null,null,null,null,null,null,null,null,null,null,null,{"$f":"A7&B7&D7&E7","v":"106"}]
[10,"مروحة استاند عادة 18\"",600,6,"تغيير منتج",{"$f":"SUM(G8:AK8)","v":0},null,null,null,null,null,null,null,null,null,null,null,null,null,null,null,null,null,null,null,null,null,null,null,null,null,null,null,null,null,null,null,{"$f":"A8&B8&D8&E8","v":"10مروحة استاند عادة 18\"6تغيير منتج"}]
[10,"دريم",1,"تغيير منتج",null,{"$f":"SUM(G9:AK9)","v":0},null,null,null,null,null,null,null,null,null,null,null,null,null,null,null,null,null,null,null,null,null,null,null,null,null,null,null,null,null,null,null,{"$f":"A9&B9&D9&E9","v":"10دريمتغيير منتج"}]
[10,null,null,null,"اكاي",{"$f":"SUM(G10:AK10)","v":0},null,null,null,null,null,null,null,null,null,null,null,null,null,null,null,null,null,null,null,null,null,null,null,null,null,null,null,null,null,null,null,{"$f":"A10&B10&D10&E10","v":"10اكاي"}]
[10,6,1,"اكاي","محمود",{"$f":"SUM(G11:AK11)","v":0},null,null,null,null,null,null,null,null,null,null,null,null,null,null,null,null,null,null,null,null,null,null,null,null,null,null,null,null,null,null,null,{"$f":"A11&B11&D11&E11","v":"106اكايمحمود"}]
[10,"تغيير منتج",2,"محمود",null,{"$f":"SUM(G12:AK12)","v":0},null,null,null,null,null,null,null,null,null,null,null,null,null,null,null,null,null,null,null,null,null,null,null,null,null,null,null,null,null,null,null,{"$f":"A12&B12&D12&E12","v":"10تغيير منتجمحمود"}]
[10,null,20,null,"مروحة حائط عادة 18\"",{"$f":"SUM(G13:AK13)","v":0},null,null,null,null,null,null,null,null,null,null,null,null,null,null,null,null,null,null,null,null,null,null,null,null,null,null,null,null,null,null,null,{"$f":"A13&B13&D13&E13","v":"10مروحة حائط عادة 18\""}]
[10,"اكاي",1,"مروحة حائط عادة 18\"","دريم",{"$f":"SUM(G14:AK14)","v":0},null,null,null,null,null,null,null,null,null,null,null,null,null,null,null,null,null,null,null,null,null,null,null,null,null,null,null,null,null,null,null,{"$f":"A14&B14&D14&E14","v":"10اكايمروحة حائط عادة 18\"دريم"}]
[10,"محمود",1,"دريم",null,{"$f":"SUM(G15:AK15)","v":0},null,null,null,null,null,null,null,null,null,null,null,null,null,null,null,null,null,null,null,null,null,null,null,null,null,null,null,null,null,null,null,{"$f":"A15&B15&D15&E15","v":"10محموددريم"}]
[10,null,7,null,5,{"$f":"SUM(G16:AK16)","v":0},null,null,null,null,null,null,null,null,null,null,null,null,null,null,null,null,null,null,null,null,null,null,null,null,null,null,null,null,null,null,null,{"$f":"A16&B16&D16&E16","v":"105"}]
[10,"مروحة حائط عادة 18\"",600,5,"تغيير منتج",{"$f":"SUM(G17:AK17)","v":0},null,null,null,null,null,null,null,null,null,null,null,null,null,null,null,null,null,null,null,null,null,null,null,null,null,null,null,null,null,null,null,{"$f":"A17&B17&D17&E17","v":"10مروحة حائط عادة 18\"5تغيير منتج"}]
[10,"دريم",1,"تغيير منتج",null,{"$f":"SUM(G18:AK18)","v":0},null,null,null,null,null,null,null,null,null,null,null,null,null,null,null,null,null,null,null,null,null,null,null,null,null,null,null,null,null,null,null,{"$f":"A18&B18&D18&E18","v":"10دريمتغيير منتج"}]
[10,null,null,null,"اكاي",{"$f":"SUM(G19:AK19)","v":0},null,null,null,null,null,null,null,null,null,null,null,null,null,null,null,null,null,null,null,null,null,null,null,null,null,null,null,null,null,null,null,{"$f":"A19&B19&D19&E19","v":"10اكاي"}]
[10,5,1,"اكاي","محمود",{"$f":"SUM(G20:AK20)","v":0},null,null,null,null,null,null,null,null,null,null,null,null,null,null,null,null,null,null,null,null,null,null,null,null,null,null,null,null,null,null,null,{"$f":"A20&B20&D20&E20","v":"105اكايمحمود"}]
[10,"تغيير منتج",3,"محمود",null,{"$f":"SUM(G21:AK21)","v":0},null,null,null,null,null,null,null,null,null,null,null,null,null,null,null,null,null,null,null,null,null,null,null,null,null,null,null,null,null,null,null,{"$f":"A21&B21&D21&E21","v":"10تغيير منتجمحمود"}]
[10,null,20,null,"مبرد",{"$f":"SUM(G22:AK22)","v":0},null,null,null,null,null,null,null,null,null,null,null,null,null,null,null,null,null,null,null,null,null,null,null,null,null,null,null,null,null,null,null,{"$f":"A22&B22&D22&E22","v":"10مبرد"}]
[10,"اكاي",1,"مبرد","دريم",{"$f":"SUM(G23:AK23)","v":0},null,null,null,null,null,null,null,null,null,null,null,null,null,null,null,null,null,null,null,null,null,null,null,null,null,null,null,null,null,null,null,{"$f":"A23&B23&D23&E23","v":"10اكايمبرددريم"}]
[10,"محمود",1,"دريم",null,{"$f":"SUM(G24:AK24)","v":0},null,null,null,null,null,null,null,null,null,null,null,null,null,null,null,null,null,null,null,null,null,null,null,null,null,null,null,null,null,null,null,{"$f":"A24&B24&D24&E24","v":"10محموددريم"}]
[10,null,7,null,7,{"$f":"SUM(G25:AK25)","v":0},null,null,null,null,null,null,null,null,null,null,null,null,null,null,null,null,null,null,null,null,null,null,null,null,null,null,null,null,null,null,null,{"$f":"A25&B25&D25&E25","v":"107"}]
[10,"مبرد",150,7,null,{"$f":"SUM(G26:AK26)","v":0},null,null,null,null,null,null,null,null,null,null,null,null,null,null,null,null,null,null,null,null,null,null,null,null,null,null,null,null,null,null,null,{"$f":"A26&B26&D26&E26","v":"10مبرد7"}]
[10,"دريم",1,null,null,{"$f":"SUM(G27:AK27)","v":0},null,null,null,null,null,null,null,null,null,null,null,null,null,null,null,null,null,null,null,null,null,null,null,null,null,null,null,null,null,null,null,{"$f":"A27&B27&D27&E27","v":"10دريم"}]
[10,null,null,null,null,{"$f":"SUM(G28:AK28)","v":0},null,null,null,null,null,null,null,null,null,null,null,null,null,null,null,null,null,null,null,null,null,null,null,null,null,null,null,null,null,null,null,{"$f":"A28&B28&D28&E28","v":"10"}]
[10,7,null,null,null,{"$f":"SUM(G29:AK29)","v":0},null,null,null,null,null,null,null,null,null,null,null,null,null,null,null,null,null,null,null,null,null,null,null,null,null,null,null,null,null,null,null,{"$f":"A29&B29&D29&E29","v":"107"}]
[10,null,null,null,null,{"$f":"SUM(G30:AK30)","v":0},null,null,null,null,null,null,null,null,null,null,null,null,null,null,null,null,null,null,null,null,null,null,null,null,null,null,null,null,null,null,null,{"$f":"A30&B30&D30&E30","v":"10"}]
[10,null,null,null,null,{"$f":"SUM(G31:AK31)","v":0},null,null,null,null,null,null,null,null,null,null,null,null,null,null,null,null,null,null,null,null,null,null,null,null,null,null,null,null,null,null,null,{"$f":"A31&B31&D31&E31","v":"10"}]
[10,null,null,null,null,{"$f":"SUM(G32:AK32)","v":0},null,null,null,null,null,null,null,null,null,null,null,null,null,null,null,null,null,null,null,null,null,null,null,null,null,null,null,null,null,null,null,{"$f":"A32&B32&D32&E32","v":"10"}]
[10,null,null,null,null,{"$f":"SUM(G33:AK33)","v":0},null,null,null,null,null,null,null,null,null,null,null,null,null,null,null,null,null,null,null,null,null,null,null,null,null,null,null,null,null,null,null,{"$f":"A33&B33&D33&E33","v":"10"}]
[10,null,null,null,null,{"$f":"SUM(G34:AK34)","v":0},null,null,null,null,null,null,null,null,null,null,null,null,null,null,null,null,null,null,null,null,null,null,null,null,null,null,null,null,null,null,null,{"$f":"A34&B34&D34&E34","v":"10"}]
[10,null,null,null,null,{"$f":"SUM(G35:AK35)","v":0},null,null,null,null,null,null,null,null,null,null,null,null,null,null,null,null,null,null,null,null,null,null,null,null,null,null,null,null,null,null,null,{"$f":"A35&B35&D35&E35","v":"10"}]
[10,null,null,null,null,{"$f":"SUM(G36:AK36)","v":0},null,null,null,null,null,null,null,null,null,null,null,null,null,null,null,null,null,null,null,null,null,null,null,null,null,null,null,null,null,null,null,{"$f":"A36&B36&D36&E36","v":"10"}]
[10,null,null,null,null,{"$f":"SUM(G37:AK37)","v":0},null,null,null,null,null,null,null,null,null,null,null,null,null,null,null,null,null,null,null,null,null,null,null,null,null,null,null,null,null,null,null,{"$f":"A37&B37&D37&E37","v":"10"}]
[10,null,null,null,null,{"$f":"SUM(G38:AK38)","v":0},null,null,null,null,null,null,null,null,null,null,null,null,null,null,null,null,null,null,null,null,null,null,null,null,null,null,null,null,null,null,null,{"$f":"A38&B38&D38&E38","v":"10"}]
[10,null,null,null,null,{"$f":"SUM(G39:AK39)","v":0},null,null,null,null,null,null,null,null,null,null,null,null,null,null,null,null,null,null,null,null,null,null,null,null,null,null,null,null,null,null,null,{"$f":"A39&B39&D39&E39","v":"10"}]
[10,null,null,null,null,{"$f":"SUM(G40:AK40)","v":0},null,null,null,null,null,null,null,null,null,null,null,null,null,null,null,null,null,null,null,null,null,null,null,null,null,null,null,null,null,null,null,{"$f":"A40&B40&D40&E40","v":"10"}]
[10,null,null,null,null,{"$f":"SUM(G41:AK41)","v":0},null,null,null,null,null,null,null,null,null,null,null,null,null,null,null,null,null,null,null,null,null,null,null,null,null,null,null,null,null,null,null,{"$f":"A41&B41&D41&E41","v":"10"}]
[10,null,null,null,null,{"$f":"SUM(G42:AK42)","v":0},null,null,null,null,null,null,null,null,null,null,null,null,null,null,null,null,null,null,null,null,null,null,null,null,null,null,null,null,null,null,null,{"$f":"A42&B42&D42&E42","v":"10"}]
[10,null,null,null,null,{"$f":"SUM(G43:AK43)","v":0},null,null,null,null,null,null,null,null,null,null,null,null,null,null,null,null,null,null,null,null,null,null,null,null,null,null,null,null,null,null,null,{"$f":"A43&B43&D43&E43","v":"10"}]
[10,null,null,null,null,{"$f":"SUM(G44:AK44)","v":0},null,null,null,null,null,null,null,null,null,null,null,null,null,null,null,null,null,null,null,null,null,null,null,null,null,null,null,null,null,null,null,{"$f":"A44&B44&D44&E44","v":"10"}]
[10,null,null,null,null,{"$f":"SUM(G45:AK45)","v":0},null,null,null,null,null,null,null,null,null,null,null,null,null,null,null,null,null,null,null,null,null,null,null,null,null,null,null,null,null,null,null,{"$f":"A45&B45&D45&E45","v":"10"}]
[10,null,null,null,null,{"$f":"SUM(G46:AK46)","v":0},null,null,null,null,null,null,null,null,null,null,null,null,null,null,null,null,null,null,null,null,null,null,null,null,null,null,null,null,null,null,null,{"$f":"A46&B46&D46&E46","v":"10"}]
[10,null,null,null,null,{"$f":"SUM(G47:AK47)","v":0},null,null,null,null,null,null,null,null,null,null,null,null,null,null,null,null,null,null,null,null,null,null,null,null,null,null,null,null,null,null,null,{"$f":"A47&B47&D47&E47","v":"10"}]
[10,null,null,null,null,{"$f":"SUM(G48:AK48)","v":0},null,null,null,null,null,null,null,null,null,null,null,null,null,null,null,null,null,null,null,null,null,null,null,null,null,null,null,null,null,null,null,{"$f":"A48&B48&D48&E48","v":"10"}]
[10,null,null,null,null,{"$f":"SUM(G49:AK49)","v":0},null,null,null,null,null,null,null,null,null,null,null,null,null,null,null,null,null,null,null,null,null,null,null,null,null,null,null,null,null,null,null,{"$f":"A49&B49&D49&E49","v":"10"}]
[10,null,null,null,null,{"$f":"SUM(G50:AK50)","v":0},null,null,null,null,null,null,null,null,null,null,null,null,null,null,null,null,null,null,null,null,null,null,null,null,null,null,null,null,null,null,null,{"$f":"A50&B50&D50&E50","v":"10"}]
[10,null,null,null,null,{"$f":"SUM(G51:AK51)","v":0},null,null,null,null,null,null,null,null,null,null,null,null,null,null,null,null,null,null,null,null,null,null,null,null,null,null,null,null,null,null,null,{"$f":"A51&B51&D51&E51","v":"10"}]
[10,null,null,null,null,{"$f":"SUM(G52:AK52)","v":0},null,null,null,null,null,null,null,null,null,null,null,null,null,null,null,null,null,null,null,null,null,null,null,null,null,null,null,null,null,null,null,{"$f":"A52&B52&D52&E52","v":"10"}]
[10,null,null,null,null,{"$f":"SUM(G53:AK53)","v":0},null,null,null,null,null,null,null,null,null,null,null,null,null,null,null,null,null,null,null,null,null,null,null,null,null,null,null,null,null,null,null,{"$f":"A53&B53&D53&E53","v":"10"}]
[10,null,null,null,null,{"$f":"SUM(G54:AK54)","v":0},null,null,null,null,null,null,null,null,null,null,null,null,null,null,null,null,null,null,null,null,null,null,null,null,null,null,null,null,null,null,null,{"$f":"A54&B54&D54&E54","v":"10"}]
[10,null,null,null,null,{"$f":"SUM(G55:AK55)","v":0},null,null,null,null,null,null,null,null,null,null,null,null,null,null,null,null,null,null,null,null,null,null,null,null,null,null,null,null,null,null,null,{"$f":"A55&B55&D55&E55","v":"10"}]
[10,null,null,null,null,{"$f":"SUM(G56:AK56)","v":0},null,null,null,null,null,null,null,null,null,null,null,null,null,null,null,null,null,null,null,null,null,null,null,null,null,null,null,null,null,null,null,{"$f":"A56&B56&D56&E56","v":"10"}]
[10,null,null,null,null,{"$f":"SUM(G57:AK57)","v":0},null,null,null,null,null,null,null,null,null,null,null,null,null,null,null,null,null,null,null,null,null,null,null,null,null,null,null,null,null,null,null,{"$f":"A57&B57&D57&E57","v":"10"}]
[10,null,null,null,null,{"$f":"SUM(G58:AK58)","v":0},null,null,null,null,null,null,null,null,null,null,null,null,null,null,null,null,null,null,null,null,null,null,null,null,null,null,null,null,null,null,null,{"$f":"A58&B58&D58&E58","v":"10"}]
[10,null,null,null,null,{"$f":"SUM(G59:AK59)","v":0},null,null,null,null,null,null,null,null,null,null,null,null,null,null,null,null,null,null,null,null,null,null,null,null,null,null,null,null,null,null,null,{"$f":"A59&B59&D59&E59","v":"10"}]
[10,null,null,null,null,{"$f":"SUM(G60:AK60)","v":0},null,null,null,null,null,null,null,null,null,null,null,null,null,null,null,null,null,null,null,null,null,null,null,null,null,null,null,null,null,null,null,{"$f":"A60&B60&D60&E60","v":"10"}]
[10,null,null,null,null,{"$f":"SUM(G61:AK61)","v":0},null,null,null,null,null,null,null,null,null,null,null,null,null,null,null,null,null,null,null,null,null,null,null,null,null,null,null,null,null,null,null,{"$f":"A61&B61&D61&E61","v":"10"}]
[10,null,null,null,null,{"$f":"SUM(G62:AK62)","v":0},null,null,null,null,null,null,null,null,null,null,null,null,null,null,null,null,null,null,null,null,null,null,null,null,null,null,null,null,null,null,null,{"$f":"A62&B62&D62&E62","v":"10"}]
[10,null,null,null,null,{"$f":"SUM(G63:AK63)","v":0},null,null,null,null,null,null,null,null,null,null,null,null,null,null,null,null,null,null,null,null,null,null,null,null,null,null,null,null,null,null,null,{"$f":"A63&B63&D63&E63","v":"10"}]
[10,null,null,null,null,{"$f":"SUM(G64:AK64)","v":0},null,null,null,null,null,null,null,null,null,null,null,null,null,null,null,null,null,null,null,null,null,null,null,null,null,null,null,null,null,null,null,{"$f":"A64&B64&D64&E64","v":"10"}]
[10,null,null,null,null,{"$f":"SUM(G65:AK65)","v":0},null,null,null,null,null,null,null,null,null,null,null,null,null,null,null,null,null,null,null,null,null,null,null,null,null,null,null,null,null,null,null,{"$f":"A65&B65&D65&E65","v":"10"}]
[10,null,null,null,null,{"$f":"SUM(G66:AK66)","v":0},null,null,null,null,null,null,null,null,null,null,null,null,null,null,null,null,null,null,null,null,null,null,null,null,null,null,null,null,null,null,null,{"$f":"A66&B66&D66&E66","v":"10"}]
[10,null,null,null,null,{"$f":"SUM(G67:AK67)","v":0},null,null,null,null,null,null,null,null,null,null,null,null,null,null,null,null,null,null,null,null,null,null,null,null,null,null,null,null,null,null,null,{"$f":"A67&B67&D67&E67","v":"10"}]
[10,null,null,null,null,{"$f":"SUM(G68:AK68)","v":0},null,null,null,null,null,null,null,null,null,null,null,null,null,null,null,null,null,null,null,null,null,null,null,null,null,null,null,null,null,null,null,{"$f":"A68&B68&D68&E68","v":"10"}]
[10,null,null,null,null,{"$f":"SUM(G69:AK69)","v":0},null,null,null,null,null,null,null,null,null,null,null,null,null,null,null,null,null,null,null,null,null,null,null,null,null,null,null,null,null,null,null,{"$f":"A69&B69&D69&E69","v":"10"}]
[10,null,null,null,null,{"$f":"SUM(G70:AK70)","v":0},null,null,null,null,null,null,null,null,null,null,null,null,null,null,null,null,null,null,null,null,null,null,null,null,null,null,null,null,null,null,null,{"$f":"A70&B70&D70&E70","v":"10"}]
[10,null,null,null,null,{"$f":"SUM(G71:AK71)","v":0},null,null,null,null,null,null,null,null,null,null,null,null,null,null,null,null,null,null,null,null,null,null,null,null,null,null,null,null,null,null,null,{"$f":"A71&B71&D71&E71","v":"10"}]
[10,null,null,null,null,{"$f":"SUM(G72:AK72)","v":0},null,null,null,null,null,null,null,null,null,null,null,null,null,null,null,null,null,null,null,null,null,null,null,null,null,null,null,null,null,null,null,{"$f":"A72&B72&D72&E72","v":"10"}]
[10,null,null,null,null,{"$f":"SUM(G73:AK73)","v":0},null,null,null,null,null,null,null,null,null,null,null,null,null,null,null,null,null,null,null,null,null,null,null,null,null,null,null,null,null,null,null,{"$f":"A73&B73&D73&E73","v":"10"}]
[10,null,null,null,null,{"$f":"SUM(G74:AK74)","v":0},null,null,null,null,null,null,null,null,null,null,null,null,null,null,null,null,null,null,null,null,null,null,null,null,null,null,null,null,null,null,null,{"$f":"A74&B74&D74&E74","v":"10"}]
[10,null,null,null,null,{"$f":"SUM(G75:AK75)","v":0},null,null,null,null,null,null,null,null,null,null,null,null,null,null,null,null,null,null,null,null,null,null,null,null,null,null,null,null,null,null,null,{"$f":"A75&B75&D75&E75","v":"10"}]
[10,null,null,null,null,{"$f":"SUM(G76:AK76)","v":0},null,null,null,null,null,null,null,null,null,null,null,null,null,null,null,null,null,null,null,null,null,null,null,null,null,null,null,null,null,null,null,{"$f":"A76&B76&D76&E76","v":"10"}]
[10,null,null,null,null,{"$f":"SUM(G77:AK77)","v":0},null,null,null,null,null,null,null,null,null,null,null,null,null,null,null,null,null,null,null,null,null,null,null,null,null,null,null,null,null,null,null,{"$f":"A77&B77&D77&E77","v":"10"}]
[10,null,null,null,null,{"$f":"SUM(G78:AK78)","v":0},null,null,null,null,null,null,null,null,null,null,null,null,null,null,null,null,null,null,null,null,null,null,null,null,null,null,null,null,null,null,null,{"$f":"A78&B78&D78&E78","v":"10"}]
[10,null,null,null,null,{"$f":"SUM(G79:AK79)","v":0},null,null,null,null,null,null,null,null,null,null,null,null,null,null,null,null,null,null,null,null,null,null,null,null,null,null,null,null,null,null,null,{"$f":"A79&B79&D79&E79","v":"10"}]
[10,null,null,null,null,{"$f":"SUM(G80:AK80)","v":0},null,null,null,null,null,null,null,null,null,null,null,null,null,null,null,null,null,null,null,null,null,null,null,null,null,null,null,null,null,null,null,{"$f":"A80&B80&D80&E80","v":"10"}]
[10,null,null,null,null,{"$f":"SUM(G81:AK81)","v":0},null,null,null,null,null,null,null,null,null,null,null,null,null,null,null,null,null,null,null,null,null,null,null,null,null,null,null,null,null,null,null,{"$f":"A81&B81&D81&E81","v":"10"}]
[10,null,null,null,null,{"$f":"SUM(G82:AK82)","v":0},null,null,null,null,null,null,null,null,null,null,null,null,null,null,null,null,null,null,null,null,null,null,null,null,null,null,null,null,null,null,null,{"$f":"A82&B82&D82&E82","v":"10"}]
[10,null,null,null,null,{"$f":"SUM(G83:AK83)","v":0},null,null,null,null,null,null,null,null,null,null,null,null,null,null,null,null,null,null,null,null,null,null,null,null,null,null,null,null,null,null,null,{"$f":"A83&B83&D83&E83","v":"10"}]
[10,null,null,null,null,{"$f":"SUM(G84:AK84)","v":0},null,null,null,null,null,null,null,null,null,null,null,null,null,null,null,null,null,null,null,null,null,null,null,null,null,null,null,null,null,null,null,{"$f":"A84&B84&D84&E84","v":"10"}]
[10,null,null,null,null,{"$f":"SUM(G85:AK85)","v":0},null,null,null,null,null,null,null,null,null,null,null,null,null,null,null,null,null,null,null,null,null,null,null,null,null,null,null,null,null,null,null,{"$f":"A85&B85&D85&E85","v":"10"}]
[10,null,null,null,null,{"$f":"SUM(G86:AK86)","v":0},null,null,null,null,null,null,null,null,null,null,null,null,null,null,null,null,null,null,null,null,null,null,null,null,null,null,null,null,null,null,null,{"$f":"A86&B86&D86&E86","v":"10"}]
[10,null,null,null,null,{"$f":"SUM(G87:AK87)","v":0},null,null,null,null,null,null,null,null,null,null,null,null,null,null,null,null,null,null,null,null,null,null,null,null,null,null,null,null,null,null,null,{"$f":"A87&B87&D87&E87","v":"10"}]
[10,null,null,null,null,{"$f":"SUM(G88:AK88)","v":0},null,null,null,null,null,null,null,null,null,null,null,null,null,null,null,null,null,null,null,null,null,null,null,null,null,null,null,null,null,null,null,{"$f":"A88&B88&D88&E88","v":"10"}]
[10,null,null,null,null,{"$f":"SUM(G89:AK89)","v":0},null,null,null,null,null,null,null,null,null,null,null,null,null,null,null,null,null,null,null,null,null,null,null,null,null,null,null,null,null,null,null,{"$f":"A89&B89&D89&E89","v":"10"}]
[10,null,null,null,null,{"$f":"SUM(G90:AK90)","v":0},null,null,null,null,null,null,null,null,null,null,null,null,null,null,null,null,null,null,null,null,null,null,null,null,null,null,null,null,null,null,null,{"$f":"A90&B90&D90&E90","v":"10"}]
[10,null,null,null,null,{"$f":"SUM(G91:AK91)","v":0},null,null,null,null,null,null,null,null,null,null,null,null,null,null,null,null,null,null,null,null,null,null,null,null,null,null,null,null,null,null,null,{"$f":"A91&B91&D91&E91","v":"10"}]
[10,null,null,null,null,{"$f":"SUM(G92:AK92)","v":0},null,null,null,null,null,null,null,null,null,null,null,null,null,null,null,null,null,null,null,null,null,null,null,null,null,null,null,null,null,null,null,{"$f":"A92&B92&D92&E92","v":"10"}]
[10,null,null,null,null,{"$f":"SUM(G93:AK93)","v":0},null,null,null,null,null,null,null,null,null,null,null,null,null,null,null,null,null,null,null,null,null,null,null,null,null,null,null,null,null,null,null,{"$f":"A93&B93&D93&E93","v":"10"}]
[10,null,null,null,null,{"$f":"SUM(G94:AK94)","v":0},null,null,null,null,null,null,null,null,null,null,null,null,null,null,null,null,null,null,null,null,null,null,null,null,null,null,null,null,null,null,null,{"$f":"A94&B94&D94&E94","v":"10"}]
[10,null,null,null,null,{"$f":"SUM(G95:AK95)","v":0},null,null,null,null,null,null,null,null,null,null,null,null,null,null,null,null,null,null,null,null,null,null,null,null,null,null,null,null,null,null,null,{"$f":"A95&B95&D95&E95","v":"10"}]
[10,null,null,null,null,{"$f":"SUM(G96:AK96)","v":0},null,null,null,null,null,null,null,null,null,null,null,null,null,null,null,null,null,null,null,null,null,null,null,null,null,null,null,null,null,null,null,{"$f":"A96&B96&D96&E96","v":"10"}]
[10,null,null,null,null,{"$f":"SUM(G97:AK97)","v":0},null,null,null,null,null,null,null,null,null,null,null,null,null,null,null,null,null,null,null,null,null,null,null,null,null,null,null,null,null,null,null,{"$f":"A97&B97&D97&E97","v":"10"}]
[10,null,null,null,null,{"$f":"SUM(G98:AK98)","v":0},null,null,null,null,null,null,null,null,null,null,null,null,null,null,null,null,null,null,null,null,null,null,null,null,null,null,null,null,null,null,null,{"$f":"A98&B98&D98&E98","v":"10"}]
[10,null,null,null,null,{"$f":"SUM(G99:AK99)","v":0},null,null,null,null,null,null,null,null,null,null,null,null,null,null,null,null,null,null,null,null,null,null,null,null,null,null,null,null,null,null,null,{"$f":"A99&B99&D99&E99","v":"10"}]
[10,null,null,null,null,{"$f":"SUM(G100:AK100)","v":0},null,null,null,null,null,null,null,null,null,null,null,null,null,null,null,null,null,null,null,null,null,null,null,null,null,null,null,null,null,null,null,{"$f":"A100&B100&D100&E100","v":"10"}]
[10,null,null,null,null,{"$f":"SUM(G101:AK101)","v":0},null,null,null,null,null,null,null,null,null,null,null,null,null,null,null,null,null,null,null,null,null,null,null,null,null,null,null,null,null,null,null,{"$f":"A101&B101&D101&E101","v":"10"}]
[10,null,null,null,null,{"$f":"SUM(G102:AK102)","v":0},null,null,null,null,null,null,null,null,null,null,null,null,null,null,null,null,null,null,null,null,null,null,null,null,null,null,null,null,null,null,null,{"$f":"A102&B102&D102&E102","v":"10"}]
[10,null,null,null,null,{"$f":"SUM(G103:AK103)","v":0},null,null,null,null,null,null,null,null,null,null,null,null,null,null,null,null,null,null,null,null,null,null,null,null,null,null,null,null,null,null,null,{"$f":"A103&B103&D103&E103","v":"10"}]
[10,null,null,null,null,{"$f":"SUM(G104:AK104)","v":0},null,null,null,null,null,null,null,null,null,null,null,null,null,null,null,null,null,null,null,null,null,null,null,null,null,null,null,null,null,null,null,{"$f":"A104&B104&D104&E104","v":"10"}]
[10,null,null,null,null,{"$f":"SUM(G105:AK105)","v":0},null,null,null,null,null,null,null,null,null,null,null,null,null,null,null,null,null,null,null,null,null,null,null,null,null,null,null,null,null,null,null,{"$f":"A105&B105&D105&E105","v":"10"}]
[10,null,null,null,null,{"$f":"SUM(G106:AK106)","v":0},null,null,null,null,null,null,null,null,null,null,null,null,null,null,null,null,null,null,null,null,null,null,null,null,null,null,null,null,null,null,null,{"$f":"A106&B106&D106&E106","v":"10"}]
[10,null,null,null,null,{"$f":"SUM(G107:AK107)","v":0},null,null,null,null,null,null,null,null,null,null,null,null,null,null,null,null,null,null,null,null,null,null,null,null,null,null,null,null,null,null,null,{"$f":"A107&B107&D107&E107","v":"10"}]
[10,null,null,null,null,{"$f":"SUM(G108:AK108)","v":0},null,null,null,null,null,null,null,null,null,null,null,null,null,null,null,null,null,null,null,null,null,null,null,null,null,null,null,null,null,null,null,{"$f":"A108&B108&D108&E108","v":"10"}]
[10,null,null,null,null,{"$f":"SUM(G109:AK109)","v":0},null,null,null,null,null,null,null,null,null,null,null,null,null,null,null,null,null,null,null,null,null,null,null,null,null,null,null,null,null,null,null,{"$f":"A109&B109&D109&E109","v":"10"}]
[10,null,null,null,null,{"$f":"SUM(G110:AK110)","v":0},null,null,null,null,null,null,null,null,null,null,null,null,null,null,null,null,null,null,null,null,null,null,null,null,null,null,null,null,null,null,null,{"$f":"A110&B110&D110&E110","v":"10"}]
[10,null,null,null,null,{"$f":"SUM(G111:AK111)","v":0},null,null,null,null,null,null,null,null,null,null,null,null,null,null,null,null,null,null,null,null,null,null,null,null,null,null,null,null,null,null,null,{"$f":"A111&B111&D111&E111","v":"10"}]
[10,null,null,null,null,{"$f":"SUM(G112:AK112)","v":0},null,null,null,null,null,null,null,null,null,null,null,null,null,null,null,null,null,null,null,null,null,null,null,null,null,null,null,null,null,null,null,{"$f":"A112&B112&D112&E112","v":"10"}]
[10,null,null,null,null,{"$f":"SUM(G113:AK113)","v":0},null,null,null,null,null,null,null,null,null,null,null,null,null,null,null,null,null,null,null,null,null,null,null,null,null,null,null,null,null,null,null,{"$f":"A113&B113&D113&E113","v":"10"}]
[10,null,null,null,null,{"$f":"SUM(G114:AK114)","v":0},null,null,null,null,null,null,null,null,null,null,null,null,null,null,null,null,null,null,null,null,null,null,null,null,null,null,null,null,null,null,null,{"$f":"A114&B114&D114&E114","v":"10"}]
[10,null,null,null,null,{"$f":"SUM(G115:AK115)","v":0},null,null,null,null,null,null,null,null,null,null,null,null,null,null,null,null,null,null,null,null,null,null,null,null,null,null,null,null,null,null,null,{"$f":"A115&B115&D115&E115","v":"10"}]
[10,null,null,null,null,{"$f":"SUM(G116:AK116)","v":0},null,null,null,null,null,null,null,null,null,null,null,null,null,null,null,null,null,null,null,null,null,null,null,null,null,null,null,null,null,null,null,{"$f":"A116&B116&D116&E116","v":"10"}]
[10,null,null,null,null,{"$f":"SUM(G117:AK117)","v":0},null,null,null,null,null,null,null,null,null,null,null,null,null,null,null,null,null,null,null,null,null,null,null,null,null,null,null,null,null,null,null,{"$f":"A117&B117&D117&E117","v":"10"}]
[10,null,null,null,null,{"$f":"SUM(G118:AK118)","v":0},null,null,null,null,null,null,null,null,null,null,null,null,null,null,null,null,null,null,null,null,null,null,null,null,null,null,null,null,null,null,null,{"$f":"A118&B118&D118&E118","v":"10"}]
[10,null,null,null,null,{"$f":"SUM(G119:AK119)","v":0},null,null,null,null,null,null,null,null,null,null,null,null,null,null,null,null,null,null,null,null,null,null,null,null,null,null,null,null,null,null,null,{"$f":"A119&B119&D119&E119","v":"10"}]
[10,null,null,null,null,{"$f":"SUM(G120:AK120)","v":0},null,null,null,null,null,null,null,null,null,null,null,null,null,null,null,null,null,null,null,null,null,null,null,null,null,null,null,null,null,null,null,{"$f":"A120&B120&D120&E120","v":"10"}]
[10,null,null,null,null,{"$f":"SUM(G121:AK121)","v":0},null,null,null,null,null,null,null,null,null,null,null,null,null,null,null,null,null,null,null,null,null,null,null,null,null,null,null,null,null,null,null,{"$f":"A121&B121&D121&E121","v":"10"}]
[10,null,null,null,null,{"$f":"SUM(G122:AK122)","v":0},null,null,null,null,null,null,null,null,null,null,null,null,null,null,null,null,null,null,null,null,null,null,null,null,null,null,null,null,null,null,null,{"$f":"A122&B122&D122&E122","v":"10"}]
[10,null,null,null,null,{"$f":"SUM(G123:AK123)","v":0},null,null,null,null,null,null,null,null,null,null,null,null,null,null,null,null,null,null,null,null,null,null,null,null,null,null,null,null,null,null,null,{"$f":"A123&B123&D123&E123","v":"10"}]
[10,null,null,null,null,{"$f":"SUM(G124:AK124)","v":0},null,null,null,null,null,null,null,null,null,null,null,null,null,null,null,null,null,null,null,null,null,null,null,null,null,null,null,null,null,null,null,{"$f":"A124&B124&D124&E124","v":"10"}]
[10,null,null,null,null,{"$f":"SUM(G125:AK125)","v":0},null,null,null,null,null,null,null,null,null,null,null,null,null,null,null,null,null,null,null,null,null,null,null,null,null,null,null,null,null,null,null,{"$f":"A125&B125&D125&E125","v":"10"}]
[10,null,null,null,null,{"$f":"SUM(G126:AK126)","v":0},null,null,null,null,null,null,null,null,null,null,null,null,null,null,null,null,null,null,null,null,null,null,null,null,null,null,null,null,null,null,null,{"$f":"A126&B126&D126&E126","v":"10"}]
[10,null,null,null,null,{"$f":"SUM(G127:AK127)","v":0},null,null,null,null,null,null,null,null,null,null,null,null,null,null,null,null,null,null,null,null,null,null,null,null,null,null,null,null,null,null,null,{"$f":"A127&B127&D127&E127","v":"10"}]
[10,null,null,null,null,{"$f":"SUM(G128:AK128)","v":0},null,null,null,null,null,null,null,null,null,null,null,null,null,null,null,null,null,null,null,null,null,null,null,null,null,null,null,null,null,null,null,{"$f":"A128&B128&D128&E128","v":"10"}]
[10,null,null,null,null,{"$f":"SUM(G129:AK129)","v":0},null,null,null,null,null,null,null,null,null,null,null,null,null,null,null,null,null,null,null,null,null,null,null,null,null,null,null,null,null,null,null,{"$f":"A129&B129&D129&E129","v":"10"}]
[10,null,null,null,null,{"$f":"SUM(G130:AK130)","v":0},null,null,null,null,null,null,null,null,null,null,null,null,null,null,null,null,null,null,null,null,null,null,null,null,null,null,null,null,null,null,null,{"$f":"A130&B130&D130&E130","v":"10"}]
[10,null,null,null,null,{"$f":"SUM(G131:AK131)","v":0},null,null,null,null,null,null,null,null,null,null,null,null,null,null,null,null,null,null,null,null,null,null,null,null,null,null,null,null,null,null,null,{"$f":"A131&B131&D131&E131","v":"10"}]
[10,null,null,null,null,{"$f":"SUM(G132:AK132)","v":0},null,null,null,null,null,null,null,null,null,null,null,null,null,null,null,null,null,null,null,null,null,null,null,null,null,null,null,null,null,null,null,{"$f":"A132&B132&D132&E132","v":"10"}]
[10,null,null,null,null,{"$f":"SUM(G133:AK133)","v":0},null,null,null,null,null,null,null,null,null,null,null,null,null,null,null,null,null,null,null,null,null,null,null,null,null,null,null,null,null,null,null,{"$f":"A133&B133&D133&E133","v":"10"}]
[10,null,null,null,null,{"$f":"SUM(G134:AK134)","v":0},null,null,null,null,null,null,null,null,null,null,null,null,null,null,null,null,null,null,null,null,null,null,null,null,null,null,null,null,null,null,null,{"$f":"A134&B134&D134&E134","v":"10"}]
[10,null,null,null,null,{"$f":"SUM(G135:AK135)","v":0},null,null,null,null,null,null,null,null,null,null,null,null,null,null,null,null,null,null,null,null,null,null,null,null,null,null,null,null,null,null,null,{"$f":"A135&B135&D135&E135","v":"10"}]
[10,null,null,null,null,{"$f":"SUM(G136:AK136)","v":0},null,null,null,null,null,null,null,null,null,null,null,null,null,null,null,null,null,null,null,null,null,null,null,null,null,null,null,null,null,null,null,{"$f":"A136&B136&D136&E136","v":"10"}]
[10,null,null,null,null,{"$f":"SUM(G137:AK137)","v":0},null,null,null,null,null,null,null,null,null,null,null,null,null,null,null,null,null,null,null,null,null,null,null,null,null,null,null,null,null,null,null,{"$f":"A137&B137&D137&E137","v":"10"}]
[10,null,null,null,null,{"$f":"SUM(G138:AK138)","v":0},null,null,null,null,null,null,null,null,null,null,null,null,null,null,null,null,null,null,null,null,null,null,null,null,null,null,null,null,null,null,null,{"$f":"A138&B138&D138&E138","v":"10"}]
[10,null,null,null,null,{"$f":"SUM(G139:AK139)","v":0},null,null,null,null,null,null,null,null,null,null,null,null,null,null,null,null,null,null,null,null,null,null,null,null,null,null,null,null,null,null,null,{"$f":"A139&B139&D139&E139","v":"10"}]
[10,null,null,null,null,{"$f":"SUM(G140:AK140)","v":0},null,null,null,null,null,null,null,null,null,null,null,null,null,null,null,null,null,null,null,null,null,null,null,null,null,null,null,null,null,null,null,{"$f":"A140&B140&D140&E140","v":"10"}]
[10,null,null,null,null,{"$f":"SUM(G141:AK141)","v":0},null,null,null,null,null,null,null,null,null,null,null,null,null,null,null,null,null,null,null,null,null,null,null,null,null,null,null,null,null,null,null,{"$f":"A141&B141&D141&E141","v":"10"}]
[10,null,null,null,null,{"$f":"SUM(G142:AK142)","v":0},null,null,null,null,null,null,null,null,null,null,null,null,null,null,null,null,null,null,null,null,null,null,null,null,null,null,null,null,null,null,null,{"$f":"A142&B142&D142&E142","v":"10"}]
[10,null,null,null,null,{"$f":"SUM(G143:AK143)","v":0},null,null,null,null,null,null,null,null,null,null,null,null,null,null,null,null,null,null,null,null,null,null,null,null,null,null,null,null,null,null,null,{"$f":"A143&B143&D143&E143","v":"10"}]
[10,null,null,null,null,{"$f":"SUM(G144:AK144)","v":0},null,null,null,null,null,null,null,null,null,null,null,null,null,null,null,null,null,null,null,null,null,null,null,null,null,null,null,null,null,null,null,{"$f":"A144&B144&D144&E144","v":"10"}]
[10,null,null,null,null,{"$f":"SUM(G145:AK145)","v":0},null,null,null,null,null,null,null,null,null,null,null,null,null,null,null,null,null,null,null,null,null,null,null,null,null,null,null,null,null,null,null,{"$f":"A145&B145&D145&E145","v":"10"}]
[10,null,null,null,null,{"$f":"SUM(G146:AK146)","v":0},null,null,null,null,null,null,null,null,null,null,null,null,null,null,null,null,null,null,null,null,null,null,null,null,null,null,null,null,null,null,null,{"$f":"A146&B146&D146&E146","v":"10"}]
[10,null,null,null,null,{"$f":"SUM(G147:AK147)","v":0},null,null,null,null,null,null,null,null,null,null,null,null,null,null,null,null,null,null,null,null,null,null,null,null,null,null,null,null,null,null,null,{"$f":"A147&B147&D147&E147","v":"10"}]
[10,null,null,null,null,{"$f":"SUM(G148:AK148)","v":0},null,null,null,null,null,null,null,null,null,null,null,null,null,null,null,null,null,null,null,null,null,null,null,null,null,null,null,null,null,null,null,{"$f":"A148&B148&D148&E148","v":"10"}]
[10,null,null,null,null,{"$f":"SUM(G149:AK149)","v":0},null,null,null,null,null,null,null,null,null,null,null,null,null,null,null,null,null,null,null,null,null,null,null,null,null,null,null,null,null,null,null,{"$f":"A149&B149&D149&E149","v":"10"}]
[10,null,null,null,null,{"$f":"SUM(G150:AK150)","v":0},null,null,null,null,null,null,null,null,null,null,null,null,null,null,null,null,null,null,null,null,null,null,null,null,null,null,null,null,null,null,null,{"$f":"A150&B150&D150&E150","v":"10"}]
[10,null,null,null,null,{"$f":"SUM(G151:AK151)","v":0},null,null,null,null,null,null,null,null,null,null,null,null,null,null,null,null,null,null,null,null,null,null,null,null,null,null,null,null,null,null,null,{"$f":"A151&B151&D151&E151","v":"10"}]
[10,null,null,null,null,{"$f":"SUM(G152:AK152)","v":0},null,null,null,null,null,null,null,null,null,null,null,null,null,null,null,null,null,null,null,null,null,null,null,null,null,null,null,null,null,null,null,{"$f":"A152&B152&D152&E152","v":"10"}]
[10,null,null,null,null,{"$f":"SUM(G153:AK153)","v":0},null,null,null,null,null,null,null,null,null,null,null,null,null,null,null,null,null,null,null,null,null,null,null,null,null,null,null,null,null,null,null,{"$f":"A153&B153&D153&E153","v":"10"}]
[10,null,null,null,null,{"$f":"SUM(G154:AK154)","v":0},null,null,null,null,null,null,null,null,null,null,null,null,null,null,null,null,null,null,null,null,null,null,null,null,null,null,null,null,null,null,null,{"$f":"A154&B154&D154&E154","v":"10"}]
[10,null,null,null,null,{"$f":"SUM(G155:AK155)","v":0},null,null,null,null,null,null,null,null,null,null,null,null,null,null,null,null,null,null,null,null,null,null,null,null,null,null,null,null,null,null,null,{"$f":"A155&B155&D155&E155","v":"10"}]
[10,null,null,null,null,{"$f":"SUM(G156:AK156)","v":0},null,null,null,null,null,null,null,null,null,null,null,null,null,null,null,null,null,null,null,null,null,null,null,null,null,null,null,null,null,null,null,{"$f":"A156&B156&D156&E156","v":"10"}]
[10,null,null,null,null,{"$f":"SUM(G157:AK157)","v":0},null,null,null,null,null,null,null,null,null,null,null,null,null,null,null,null,null,null,null,null,null,null,null,null,null,null,null,null,null,null,null,{"$f":"A157&B157&D157&E157","v":"10"}]
[10,null,null,null,null,{"$f":"SUM(G158:AK158)","v":0},null,null,null,null,null,null,null,null,null,null,null,null,null,null,null,null,null,null,null,null,null,null,null,null,null,null,null,null,null,null,null,{"$f":"A158&B158&D158&E158","v":"10"}]
[10,null,null,null,null,{"$f":"SUM(G159:AK159)","v":0},null,null,null,null,null,null,null,null,null,null,null,null,null,null,null,null,null,null,null,null,null,null,null,null,null,null,null,null,null,null,null,{"$f":"A159&B159&D159&E159","v":"10"}]
[10,null,null,null,null,{"$f":"SUM(G160:AK160)","v":0},null,null,null,null,null,null,null,null,null,null,null,null,null,null,null,null,null,null,null,null,null,null,null,null,null,null,null,null,null,null,null,{"$f":"A160&B160&D160&E160","v":"10"}]
[10,null,null,null,null,{"$f":"SUM(G161:AK161)","v":0},null,null,null,null,null,null,null,null,null,null,null,null,null,null,null,null,null,null,null,null,null,null,null,null,null,null,null,null,null,null,null,{"$f":"A161&B161&D161&E161","v":"10"}]
[10,null,null,null,null,{"$f":"SUM(G162:AK162)","v":0},null,null,null,null,null,null,null,null,null,null,null,null,null,null,null,null,null,null,null,null,null,null,null,null,null,null,null,null,null,null,null,{"$f":"A162&B162&D162&E162","v":"10"}]
[10,null,null,null,null,{"$f":"SUM(G163:AK163)","v":0},null,null,null,null,null,null,null,null,null,null,null,null,null,null,null,null,null,null,null,null,null,null,null,null,null,null,null,null,null,null,null,{"$f":"A163&B163&D163&E163","v":"10"}]
[10,null,null,null,null,{"$f":"SUM(G164:AK164)","v":0},null,null,null,null,null,null,null,null,null,null,null,null,null,null,null,null,null,null,null,null,null,null,null,null,null,null,null,null,null,null,null,{"$f":"A164&B164&D164&E164","v":"10"}]
[10,null,null,null,null,{"$f":"SUM(G165:AK165)","v":0},null,null,null,null,null,null,null,null,null,null,null,null,null,null,null,null,null,null,null,null,null,null,null,null,null,null,null,null,null,null,null,{"$f":"A165&B165&D165&E165","v":"10"}]
[10,null,null,null,null,{"$f":"SUM(G166:AK166)","v":0},null,null,null,null,null,null,null,null,null,null,null,null,null,null,null,null,null,null,null,null,null,null,null,null,null,null,null,null,null,null,null,{"$f":"A166&B166&D166&E166","v":"10"}]
[10,null,null,null,null,{"$f":"SUM(G167:AK167)","v":0},null,null,null,null,null,null,null,null,null,null,null,null,null,null,null,null,null,null,null,null,null,null,null,null,null,null,null,null,null,null,null,{"$f":"A167&B167&D167&E167","v":"10"}]
[10,null,null,null,null,{"$f":"SUM(G168:AK168)","v":0},null,null,null,null,null,null,null,null,null,null,null,null,null,null,null,null,null,null,null,null,null,null,null,null,null,null,null,null,null,null,null,{"$f":"A168&B168&D168&E168","v":"10"}]
[10,null,null,null,null,{"$f":"SUM(G169:AK169)","v":0},null,null,null,null,null,null,null,null,null,null,null,null,null,null,null,null,null,null,null,null,null,null,null,null,null,null,null,null,null,null,null,{"$f":"A169&B169&D169&E169","v":"10"}]
[10,null,null,null,null,{"$f":"SUM(G170:AK170)","v":0},null,null,null,null,null,null,null,null,null,null,null,null,null,null,null,null,null,null,null,null,null,null,null,null,null,null,null,null,null,null,null,{"$f":"A170&B170&D170&E170","v":"10"}]
[10,null,null,null,null,{"$f":"SUM(G171:AK171)","v":0},null,null,null,null,null,null,null,null,null,null,null,null,null,null,null,null,null,null,null,null,null,null,null,null,null,null,null,null,null,null,null,{"$f":"A171&B171&D171&E171","v":"10"}]
[10,null,null,null,null,{"$f":"SUM(G172:AK172)","v":0},null,null,null,null,null,null,null,null,null,null,null,null,null,null,null,null,null,null,null,null,null,null,null,null,null,null,null,null,null,null,null,{"$f":"A172&B172&D172&E172","v":"10"}]
[10,null,null,null,null,{"$f":"SUM(G173:AK173)","v":0},null,null,null,null,null,null,null,null,null,null,null,null,null,null,null,null,null,null,null,null,null,null,null,null,null,null,null,null,null,null,null,{"$f":"A173&B173&D173&E173","v":"10"}]
[10,null,null,null,null,{"$f":"SUM(G174:AK174)","v":0},null,null,null,null,null,null,null,null,null,null,null,null,null,null,null,null,null,null,null,null,null,null,null,null,null,null,null,null,null,null,null,{"$f":"A174&B174&D174&E174","v":"10"}]
[10,"اكاي",1,"مروحة استاند عادة 18\"","دريم",{"$f":"SUM(G175:AK175)","v":0},null,null,null,null,null,null,null,null,null,null,null,null,null,null,null,null,null,null,null,null,null,null,null,null,null,null,null,null,null,null,null,{"$f":"A175&B175&D175&E175","v":"10اكايمروحة استاند عادة 18\"دريم"}]
[10,"بنداري",1,"دريم",null,{"$f":"SUM(G176:AK176)","v":0},null,null,null,null,null,null,null,null,null,null,null,null,null,null,null,null,null,null,null,null,null,null,null,null,null,null,null,null,null,null,null,{"$f":"A176&B176&D176&E176","v":"10بنداريدريم"}]
[10,null,7,null,6,{"$f":"SUM(G177:AK177)","v":0},null,null,null,null,null,null,null,null,null,null,null,null,null,null,null,null,null,null,null,null,null,null,null,null,null,null,null,null,null,null,null,{"$f":"A177&B177&D177&E177","v":"106"}]
[10,"مروحة استاند عادة 18\"",600,6,"تغيير منتج",{"$f":"SUM(G178:AK178)","v":0},null,null,null,null,null,null,null,null,null,null,null,null,null,null,null,null,null,null,null,null,null,null,null,null,null,null,null,null,null,null,null,{"$f":"A178&B178&D178&E178","v":"10مروحة استاند عادة 18\"6تغيير منتج"}]
[10,"دريم",1,"تغيير منتج",null,{"$f":"SUM(G179:AK179)","v":0},null,null,null,null,null,null,null,null,null,null,null,null,null,null,null,null,null,null,null,null,null,null,null,null,null,null,null,null,null,null,null,{"$f":"A179&B179&D179&E179","v":"10دريمتغيير منتج"}]
[10,null,null,null,"اكاي",{"$f":"SUM(G180:AK180)","v":0},null,null,null,null,null,null,null,null,null,null,null,null,null,null,null,null,null,null,null,null,null,null,null,null,null,null,null,null,null,null,null,{"$f":"A180&B180&D180&E180","v":"10اكاي"}]
[10,6,1,"اكاي","محمود",{"$f":"SUM(G181:AK181)","v":0},null,null,null,null,null,null,null,null,null,null,null,null,null,null,null,null,null,null,null,null,null,null,null,null,null,null,null,null,null,null,null,{"$f":"A181&B181&D181&E181","v":"106اكايمحمود"}]
[10,"تغيير منتج",2,"محمود",null,{"$f":"SUM(G182:AK182)","v":0},null,null,null,null,null,null,null,null,null,null,null,null,null,null,null,null,null,null,null,null,null,null,null,null,null,null,null,null,null,null,null,{"$f":"A182&B182&D182&E182","v":"10تغيير منتجمحمود"}]
[10,null,20,null,"مروحة حائط عادة 18\"",{"$f":"SUM(G183:AK183)","v":0},null,null,null,null,null,null,null,null,null,null,null,null,null,null,null,null,null,null,null,null,null,null,null,null,null,null,null,null,null,null,null,{"$f":"A183&B183&D183&E183","v":"10مروحة حائط عادة 18\""}]
[10,"اكاي",1,"مروحة حائط عادة 18\"","دريم",{"$f":"SUM(G184:AK184)","v":0},null,null,null,null,null,null,null,null,null,null,null,null,null,null,null,null,null,null,null,null,null,null,null,null,null,null,null,null,null,null,null,{"$f":"A184&B184&D184&E184","v":"10اكايمروحة حائط عادة 18\"دريم"}]
[10,"محمود",1,"دريم",null,{"$f":"SUM(G185:AK185)","v":0},null,null,null,null,null,null,null,null,null,null,null,null,null,null,null,null,null,null,null,null,null,null,null,null,null,null,null,null,null,null,null,{"$f":"A185&B185&D185&E185","v":"10محموددريم"}]
[10,null,7,null,5,{"$f":"SUM(G186:AK186)","v":0},null,null,null,null,null,null,null,null,null,null,null,null,null,null,null,null,null,null,null,null,null,null,null,null,null,null,null,null,null,null,null,{"$f":"A186&B186&D186&E186","v":"105"}]
[10,"مروحة حائط عادة 18\"",600,5,"تغيير منتج",{"$f":"SUM(G187:AK187)","v":0},null,null,null,null,null,null,null,null,null,null,null,null,null,null,null,null,null,null,null,null,null,null,null,null,null,null,null,null,null,null,null,{"$f":"A187&B187&D187&E187","v":"10مروحة حائط عادة 18\"5تغيير منتج"}]
[10,"دريم",1,"تغيير منتج",null,{"$f":"SUM(G188:AK188)","v":0},null,null,null,null,null,null,null,null,null,null,null,null,null,null,null,null,null,null,null,null,null,null,null,null,null,null,null,null,null,null,null,{"$f":"A188&B188&D188&E188","v":"10دريمتغيير منتج"}]
[10,null,null,null,"اكاي",{"$f":"SUM(G189:AK189)","v":0},null,null,null,null,null,null,null,null,null,null,null,null,null,null,null,null,null,null,null,null,null,null,null,null,null,null,null,null,null,null,null,{"$f":"A189&B189&D189&E189","v":"10اكاي"}]
[10,5,1,"اكاي","محمود",{"$f":"SUM(G190:AK190)","v":0},null,null,null,null,null,null,null,null,null,null,null,null,null,null,null,null,null,null,null,null,null,null,null,null,null,null,null,null,null,null,null,{"$f":"A190&B190&D190&E190","v":"105اكايمحمود"}]
[10,"تغيير منتج",3,"محمود",null,{"$f":"SUM(G191:AK191)","v":0},null,null,null,null,null,null,null,null,null,null,null,null,null,null,null,null,null,null,null,null,null,null,null,null,null,null,null,null,null,null,null,{"$f":"A191&B191&D191&E191","v":"10تغيير منتجمحمود"}]
[10,null,20,null,"مبرد",{"$f":"SUM(G192:AK192)","v":0},null,null,null,null,null,null,null,null,null,null,null,null,null,null,null,null,null,null,null,null,null,null,null,null,null,null,null,null,null,null,null,{"$f":"A192&B192&D192&E192","v":"10مبرد"}]
[10,"اكاي",1,"مبرد","دريم",{"$f":"SUM(G193:AK193)","v":0},null,null,null,null,null,null,null,null,null,null,null,null,null,null,null,null,null,null,null,null,null,null,null,null,null,null,null,null,null,null,null,{"$f":"A193&B193&D193&E193","v":"10اكايمبرددريم"}]
[10,"محمود",1,"دريم",null,{"$f":"SUM(G194:AK194)","v":0},null,null,null,null,null,null,null,null,null,null,null,null,null,null,null,null,null,null,null,null,null,null,null,null,null,null,null,null,null,null,null,{"$f":"A194&B194&D194&E194","v":"10محموددريم"}]
[10,null,7,null,7,{"$f":"SUM(G195:AK195)","v":0},null,null,null,null,null,null,null,null,null,null,null,null,null,null,null,null,null,null,null,null,null,null,null,null,null,null,null,null,null,null,null,{"$f":"A195&B195&D195&E195","v":"107"}]
[10,"مبرد",150,7,null,{"$f":"SUM(G196:AK196)","v":0},null,null,null,null,null,null,null,null,null,null,null,null,null,null,null,null,null,null,null,null,null,null,null,null,null,null,null,null,null,null,null,{"$f":"A196&B196&D196&E196","v":"10مبرد7"}]
[10,"دريم",1,null,null,{"$f":"SUM(G197:AK197)","v":0},null,null,null,null,null,null,null,null,null,null,null,null,null,null,null,null,null,null,null,null,null,null,null,null,null,null,null,null,null,null,null,{"$f":"A197&B197&D197&E197","v":"10دريم"}]
[10,null,null,null,null,{"$f":"SUM(G198:AK198)","v":0},null,null,null,null,null,null,null,null,null,null,null,null,null,null,null,null,null,null,null,null,null,null,null,null,null,null,null,null,null,null,null,{"$f":"A198&B198&D198&E198","v":"10"}]
[10,7,null,null,null,{"$f":"SUM(G199:AK199)","v":0},null,null,null,null,null,null,null,null,null,null,null,null,null,null,null,null,null,null,null,null,null,null,null,null,null,null,null,null,null,null,null,{"$f":"A199&B199&D199&E199","v":"107"}]
[10,null,null,null,null,{"$f":"SUM(G200:AK200)","v":0},null,null,null,null,null,null,null,null,null,null,null,null,null,null,null,null,null,null,null,null,null,null,null,null,null,null,null,null,null,null,null,{"$f":"A200&B200&D200&E200","v":"10"}]
[10,null,null,null,null,{"$f":"SUM(G201:AK201)","v":0},null,null,null,null,null,null,null,null,null,null,null,null,null,null,null,null,null,null,null,null,null,null,null,null,null,null,null,null,null,null,null,{"$f":"A201&B201&D201&E201","v":"10"}]
[10,null,null,null,null,{"$f":"SUM(G202:AK202)","v":0},null,null,null,null,null,null,null,null,null,null,null,null,null,null,null,null,null,null,null,null,null,null,null,null,null,null,null,null,null,null,null,{"$f":"A202&B202&D202&E202","v":"10"}]
[10,null,null,null,null,{"$f":"SUM(G203:AK203)","v":0},null,null,null,null,null,null,null,null,null,null,null,null,null,null,null,null,null,null,null,null,null,null,null,null,null,null,null,null,null,null,null,{"$f":"A203&B203&D203&E203","v":"10"}]
[10,null,null,null,null,{"$f":"SUM(G204:AK204)","v":0},null,null,null,null,null,null,null,null,null,null,null,null,null,null,null,null,null,null,null,null,null,null,null,null,null,null,null,null,null,null,null,{"$f":"A204&B204&D204&E204","v":"10"}]
[10,null,null,null,null,{"$f":"SUM(G205:AK205)","v":0},null,null,null,null,null,null,null,null,null,null,null,null,null,null,null,null,null,null,null,null,null,null,null,null,null,null,null,null,null,null,null,{"$f":"A205&B205&D205&E205","v":"10"}]
[10,null,null,null,null,{"$f":"SUM(G206:AK206)","v":0},null,null,null,null,null,null,null,null,null,null,null,null,null,null,null,null,null,null,null,null,null,null,null,null,null,null,null,null,null,null,null,{"$f":"A206&B206&D206&E206","v":"10"}]
[10,null,null,null,null,{"$f":"SUM(G207:AK207)","v":0},null,null,null,null,null,null,null,null,null,null,null,null,null,null,null,null,null,null,null,null,null,null,null,null,null,null,null,null,null,null,null,{"$f":"A207&B207&D207&E207","v":"10"}]
[10,null,null,null,null,{"$f":"SUM(G208:AK208)","v":0},null,null,null,null,null,null,null,null,null,null,null,null,null,null,null,null,null,null,null,null,null,null,null,null,null,null,null,null,null,null,null,{"$f":"A208&B208&D208&E208","v":"10"}]
[10,null,null,null,null,{"$f":"SUM(G209:AK209)","v":0},null,null,null,null,null,null,null,null,null,null,null,null,null,null,null,null,null,null,null,null,null,null,null,null,null,null,null,null,null,null,null,{"$f":"A209&B209&D209&E209","v":"10"}]
[10,null,null,null,null,{"$f":"SUM(G210:AK210)","v":0},null,null,null,null,null,null,null,null,null,null,null,null,null,null,null,null,null,null,null,null,null,null,null,null,null,null,null,null,null,null,null,{"$f":"A210&B210&D210&E210","v":"10"}]
[10,null,null,null,null,{"$f":"SUM(G211:AK211)","v":0},null,null,null,null,null,null,null,null,null,null,null,null,null,null,null,null,null,null,null,null,null,null,null,null,null,null,null,null,null,null,null,{"$f":"A211&B211&D211&E211","v":"10"}]
[10,null,null,null,null,{"$f":"SUM(G212:AK212)","v":0},null,null,null,null,null,null,null,null,null,null,null,null,null,null,null,null,null,null,null,null,null,null,null,null,null,null,null,null,null,null,null,{"$f":"A212&B212&D212&E212","v":"10"}]
[10,null,null,null,null,{"$f":"SUM(G213:AK213)","v":0},null,null,null,null,null,null,null,null,null,null,null,null,null,null,null,null,null,null,null,null,null,null,null,null,null,null,null,null,null,null,null,{"$f":"A213&B213&D213&E213","v":"10"}]
[10,null,null,null,null,{"$f":"SUM(G214:AK214)","v":0},null,null,null,null,null,null,null,null,null,null,null,null,null,null,null,null,null,null,null,null,null,null,null,null,null,null,null,null,null,null,null,{"$f":"A214&B214&D214&E214","v":"10"}]
[10,null,null,null,null,{"$f":"SUM(G215:AK215)","v":0},null,null,null,null,null,null,null,null,null,null,null,null,null,null,null,null,null,null,null,null,null,null,null,null,null,null,null,null,null,null,null,{"$f":"A215&B215&D215&E215","v":"10"}]
[10,null,null,null,null,{"$f":"SUM(G216:AK216)","v":0},null,null,null,null,null,null,null,null,null,null,null,null,null,null,null,null,null,null,null,null,null,null,null,null,null,null,null,null,null,null,null,{"$f":"A216&B216&D216&E216","v":"10"}]
[10,null,null,null,null,{"$f":"SUM(G217:AK217)","v":0},null,null,null,null,null,null,null,null,null,null,null,null,null,null,null,null,null,null,null,null,null,null,null,null,null,null,null,null,null,null,null,{"$f":"A217&B217&D217&E217","v":"10"}]
[10,null,null,null,null,{"$f":"SUM(G218:AK218)","v":0},null,null,null,null,null,null,null,null,null,null,null,null,null,null,null,null,null,null,null,null,null,null,null,null,null,null,null,null,null,null,null,{"$f":"A218&B218&D218&E218","v":"10"}]
[10,null,null,null,null,{"$f":"SUM(G219:AK219)","v":0},null,null,null,null,null,null,null,null,null,null,null,null,null,null,null,null,null,null,null,null,null,null,null,null,null,null,null,null,null,null,null,{"$f":"A219&B219&D219&E219","v":"10"}]
[10,null,null,null,null,{"$f":"SUM(G220:AK220)","v":0},null,null,null,null,null,null,null,null,null,null,null,null,null,null,null,null,null,null,null,null,null,null,null,null,null,null,null,null,null,null,null,{"$f":"A220&B220&D220&E220","v":"10"}]
[10,null,null,null,null,{"$f":"SUM(G221:AK221)","v":0},null,null,null,null,null,null,null,null,null,null,null,null,null,null,null,null,null,null,null,null,null,null,null,null,null,null,null,null,null,null,null,{"$f":"A221&B221&D221&E221","v":"10"}]
[10,null,null,null,null,{"$f":"SUM(G222:AK222)","v":0},null,null,null,null,null,null,null,null,null,null,null,null,null,null,null,null,null,null,null,null,null,null,null,null,null,null,null,null,null,null,null,{"$f":"A222&B222&D222&E222","v":"10"}]
[10,null,null,null,null,{"$f":"SUM(G223:AK223)","v":0},null,null,null,null,null,null,null,null,null,null,null,null,null,null,null,null,null,null,null,null,null,null,null,null,null,null,null,null,null,null,null,{"$f":"A223&B223&D223&E223","v":"10"}]
[10,null,null,null,null,{"$f":"SUM(G224:AK224)","v":0},null,null,null,null,null,null,null,null,null,null,null,null,null,null,null,null,null,null,null,null,null,null,null,null,null,null,null,null,null,null,null,{"$f":"A224&B224&D224&E224","v":"10"}]
[10,null,null,null,null,{"$f":"SUM(G225:AK225)","v":0},null,null,null,null,null,null,null,null,null,null,null,null,null,null,null,null,null,null,null,null,null,null,null,null,null,null,null,null,null,null,null,{"$f":"A225&B225&D225&E225","v":"10"}]
[10,null,null,null,null,{"$f":"SUM(G226:AK226)","v":0},null,null,null,null,null,null,null,null,null,null,null,null,null,null,null,null,null,null,null,null,null,null,null,null,null,null,null,null,null,null,null,{"$f":"A226&B226&D226&E226","v":"10"}]
[10,null,null,null,null,{"$f":"SUM(G227:AK227)","v":0},null,null,null,null,null,null,null,null,null,null,null,null,null,null,null,null,null,null,null,null,null,null,null,null,null,null,null,null,null,null,null,{"$f":"A227&B227&D227&E227","v":"10"}]
[10,null,null,null,null,{"$f":"SUM(G228:AK228)","v":0},null,null,null,null,null,null,null,null,null,null,null,null,null,null,null,null,null,null,null,null,null,null,null,null,null,null,null,null,null,null,null,{"$f":"A228&B228&D228&E228","v":"10"}]
[10,null,null,null,null,{"$f":"SUM(G229:AK229)","v":0},null,null,null,null,null,null,null,null,null,null,null,null,null,null,null,null,null,null,null,null,null,null,null,null,null,null,null,null,null,null,null,{"$f":"A229&B229&D229&E229","v":"10"}]
[10,null,null,null,null,{"$f":"SUM(G230:AK230)","v":0},null,null,null,null,null,null,null,null,null,null,null,null,null,null,null,null,null,null,null,null,null,null,null,null,null,null,null,null,null,null,null,{"$f":"A230&B230&D230&E230","v":"10"}]
[10,null,null,null,null,{"$f":"SUM(G231:AK231)","v":0},null,null,null,null,null,null,null,null,null,null,null,null,null,null,null,null,null,null,null,null,null,null,null,null,null,null,null,null,null,null,null,{"$f":"A231&B231&D231&E231","v":"10"}]
[10,null,null,null,null,{"$f":"SUM(G232:AK232)","v":0},null,null,null,null,null,null,null,null,null,null,null,null,null,null,null,null,null,null,null,null,null,null,null,null,null,null,null,null,null,null,null,{"$f":"A232&B232&D232&E232","v":"10"}]
[10,null,null,null,null,{"$f":"SUM(G233:AK233)","v":0},null,null,null,null,null,null,null,null,null,null,null,null,null,null,null,null,null,null,null,null,null,null,null,null,null,null,null,null,null,null,null,{"$f":"A233&B233&D233&E233","v":"10"}]
[10,null,null,null,null,{"$f":"SUM(G234:AK234)","v":0},null,null,null,null,null,null,null,null,null,null,null,null,null,null,null,null,null,null,null,null,null,null,null,null,null,null,null,null,null,null,null,{"$f":"A234&B234&D234&E234","v":"10"}]
[10,null,null,null,null,{"$f":"SUM(G235:AK235)","v":0},null,null,null,null,null,null,null,null,null,null,null,null,null,null,null,null,null,null,null,null,null,null,null,null,null,null,null,null,null,null,null,{"$f":"A235&B235&D235&E235","v":"10"}]
[10,null,null,null,null,{"$f":"SUM(G236:AK236)","v":0},null,null,null,null,null,null,null,null,null,null,null,null,null,null,null,null,null,null,null,null,null,null,null,null,null,null,null,null,null,null,null,{"$f":"A236&B236&D236&E236","v":"10"}]
[10,null,null,null,null,{"$f":"SUM(G237:AK237)","v":0},null,null,null,null,null,null,null,null,null,null,null,null,null,null,null,null,null,null,null,null,null,null,null,null,null,null,null,null,null,null,null,{"$f":"A237&B237&D237&E237","v":"10"}]
[10,null,null,null,null,{"$f":"SUM(G238:AK238)","v":0},null,null,null,null,null,null,null,null,null,null,null,null,null,null,null,null,null,null,null,null,null,null,null,null,null,null,null,null,null,null,null,{"$f":"A238&B238&D238&E238","v":"10"}]
[10,null,null,null,null,{"$f":"SUM(G239:AK239)","v":0},null,null,null,null,null,null,null,null,null,null,null,null,null,null,null,null,null,null,null,null,null,null,null,null,null,null,null,null,null,null,null,{"$f":"A239&B239&D239&E239","v":"10"}]
[10,null,null,null,null,{"$f":"SUM(G240:AK240)","v":0},null,null,null,null,null,null,null,null,null,null,null,null,null,null,null,null,null,null,null,null,null,null,null,null,null,null,null,null,null,null,null,{"$f":"A240&B240&D240&E240","v":"10"}]
[10,null,null,null,null,{"$f":"SUM(G241:AK241)","v":0},null,null,null,null,null,null,null,null,null,null,null,null,null,null,null,null,null,null,null,null,null,null,null,null,null,null,null,null,null,null,null,{"$f":"A241&B241&D241&E241","v":"10"}]
[10,null,null,null,null,{"$f":"SUM(G242:AK242)","v":0},null,null,null,null,null,null,null,null,null,null,null,null,null,null,null,null,null,null,null,null,null,null,null,null,null,null,null,null,null,null,null,{"$f":"A242&B242&D242&E242","v":"10"}]
[10,null,null,null,null,{"$f":"SUM(G243:AK243)","v":0},null,null,null,null,null,null,null,null,null,null,null,null,null,null,null,null,null,null,null,null,null,null,null,null,null,null,null,null,null,null,null,{"$f":"A243&B243&D243&E243","v":"10"}]
[10,null,null,null,null,{"$f":"SUM(G244:AK244)","v":0},null,null,null,null,null,null,null,null,null,null,null,null,null,null,null,null,null,null,null,null,null,null,null,null,null,null,null,null,null,null,null,{"$f":"A244&B244&D244&E244","v":"10"}]
[10,null,null,null,null,{"$f":"SUM(G245:AK245)","v":0},null,null,null,null,null,null,null,null,null,null,null,null,null,null,null,null,null,null,null,null,null,null,null,null,null,null,null,null,null,null,null,{"$f":"A245&B245&D245&E245","v":"10"}]
[10,null,null,null,null,{"$f":"SUM(G246:AK246)","v":0},null,null,null,null,null,null,null,null,null,null,null,null,null,null,null,null,null,null,null,null,null,null,null,null,null,null,null,null,null,null,null,{"$f":"A246&B246&D246&E246","v":"10"}]
[10,null,null,null,null,{"$f":"SUM(G247:AK247)","v":0},null,null,null,null,null,null,null,null,null,null,null,null,null,null,null,null,null,null,null,null,null,null,null,null,null,null,null,null,null,null,null,{"$f":"A247&B247&D247&E247","v":"10"}]
[10,null,null,null,null,{"$f":"SUM(G248:AK248)","v":0},null,null,null,null,null,null,null,null,null,null,null,null,null,null,null,null,null,null,null,null,null,null,null,null,null,null,null,null,null,null,null,{"$f":"A248&B248&D248&E248","v":"10"}]
[10,null,null,null,null,{"$f":"SUM(G249:AK249)","v":0},null,null,null,null,null,null,null,null,null,null,null,null,null,null,null,null,null,null,null,null,null,null,null,null,null,null,null,null,null,null,null,{"$f":"A249&B249&D249&E249","v":"10"}]
[10,null,null,null,null,{"$f":"SUM(G250:AK250)","v":0},null,null,null,null,null,null,null,null,null,null,null,null,null,null,null,null,null,null,null,null,null,null,null,null,null,null,null,null,null,null,null,{"$f":"A250&B250&D250&E250","v":"10"}]
[10,null,null,null,null,{"$f":"SUM(G251:AK251)","v":0},null,null,null,null,null,null,null,null,null,null,null,null,null,null,null,null,null,null,null,null,null,null,null,null,null,null,null,null,null,null,null,{"$f":"A251&B251&D251&E251","v":"10"}]
[10,null,null,null,null,{"$f":"SUM(G252:AK252)","v":0},null,null,null,null,null,null,null,null,null,null,null,null,null,null,null,null,null,null,null,null,null,null,null,null,null,null,null,null,null,null,null,{"$f":"A252&B252&D252&E252","v":"10"}]
[10,null,null,null,null,{"$f":"SUM(G253:AK253)","v":0},null,null,null,null,null,null,null,null,null,null,null,null,null,null,null,null,null,null,null,null,null,null,null,null,null,null,null,null,null,null,null,{"$f":"A253&B253&D253&E253","v":"10"}]
[10,null,null,null,null,{"$f":"SUM(G254:AK254)","v":0},null,null,null,null,null,null,null,null,null,null,null,null,null,null,null,null,null,null,null,null,null,null,null,null,null,null,null,null,null,null,null,{"$f":"A254&B254&D254&E254","v":"10"}]
[10,null,null,null,null,{"$f":"SUM(G255:AK255)","v":0},null,null,null,null,null,null,null,null,null,null,null,null,null,null,null,null,null,null,null,null,null,null,null,null,null,null,null,null,null,null,null,{"$f":"A255&B255&D255&E255","v":"10"}]
[10,null,null,null,null,{"$f":"SUM(G256:AK256)","v":0},null,null,null,null,null,null,null,null,null,null,null,null,null,null,null,null,null,null,null,null,null,null,null,null,null,null,null,null,null,null,null,{"$f":"A256&B256&D256&E256","v":"10"}]
[10,null,null,null,null,{"$f":"SUM(G257:AK257)","v":0},null,null,null,null,null,null,null,null,null,null,null,null,null,null,null,null,null,null,null,null,null,null,null,null,null,null,null,null,null,null,null,{"$f":"A257&B257&D257&E257","v":"10"}]
[10,null,null,null,null,{"$f":"SUM(G258:AK258)","v":0},null,null,null,null,null,null,null,null,null,null,null,null,null,null,null,null,null,null,null,null,null,null,null,null,null,null,null,null,null,null,null,{"$f":"A258&B258&D258&E258","v":"10"}]
[10,null,null,null,null,{"$f":"SUM(G259:AK259)","v":0},null,null,null,null,null,null,null,null,null,null,null,null,null,null,null,null,null,null,null,null,null,null,null,null,null,null,null,null,null,null,null,{"$f":"A259&B259&D259&E259","v":"10"}]
[10,null,null,null,null,{"$f":"SUM(G260:AK260)","v":0},null,null,null,null,null,null,null,null,null,null,null,null,null,null,null,null,null,null,null,null,null,null,null,null,null,null,null,null,null,null,null,{"$f":"A260&B260&D260&E260","v":"10"}]
[10,null,null,null,null,{"$f":"SUM(G261:AK261)","v":0},null,null,null,null,null,null,null,null,null,null,null,null,null,null,null,null,null,null,null,null,null,null,null,null,null,null,null,null,null,null,null,{"$f":"A261&B261&D261&E261","v":"10"}]
[10,null,null,null,null,{"$f":"SUM(G262:AK262)","v":0},null,null,null,null,null,null,null,null,null,null,null,null,null,null,null,null,null,null,null,null,null,null,null,null,null,null,null,null,null,null,null,{"$f":"A262&B262&D262&E262","v":"10"}]
[10,null,null,null,null,{"$f":"SUM(G263:AK263)","v":0},null,null,null,null,null,null,null,null,null,null,null,null,null,null,null,null,null,null,null,null,null,null,null,null,null,null,null,null,null,null,null,{"$f":"A263&B263&D263&E263","v":"10"}]
[10,null,null,null,null,{"$f":"SUM(G264:AK264)","v":0},null,null,null,null,null,null,null,null,null,null,null,null,null,null,null,null,null,null,null,null,null,null,null,null,null,null,null,null,null,null,null,{"$f":"A264&B264&D264&E264","v":"10"}]
[10,null,null,null,null,{"$f":"SUM(G265:AK265)","v":0},null,null,null,null,null,null,null,null,null,null,null,null,null,null,null,null,null,null,null,null,null,null,null,null,null,null,null,null,null,null,null,{"$f":"A265&B265&D265&E265","v":"10"}]
[10,null,null,null,null,{"$f":"SUM(G266:AK266)","v":0},null,null,null,null,null,null,null,null,null,null,null,null,null,null,null,null,null,null,null,null,null,null,null,null,null,null,null,null,null,null,null,{"$f":"A266&B266&D266&E266","v":"10"}]
[10,null,null,null,null,{"$f":"SUM(G267:AK267)","v":0},null,null,null,null,null,null,null,null,null,null,null,null,null,null,null,null,null,null,null,null,null,null,null,null,null,null,null,null,null,null,null,{"$f":"A267&B267&D267&E267","v":"10"}]
[10,null,null,null,null,{"$f":"SUM(G268:AK268)","v":0},null,null,null,null,null,null,null,null,null,null,null,null,null,null,null,null,null,null,null,null,null,null,null,null,null,null,null,null,null,null,null,{"$f":"A268&B268&D268&E268","v":"10"}]
[10,null,null,null,null,{"$f":"SUM(G269:AK269)","v":0},null,null,null,null,null,null,null,null,null,null,null,null,null,null,null,null,null,null,null,null,null,null,null,null,null,null,null,null,null,null,null,{"$f":"A269&B269&D269&E269","v":"10"}]
[10,null,null,null,null,{"$f":"SUM(G270:AK270)","v":0},null,null,null,null,null,null,null,null,null,null,null,null,null,null,null,null,null,null,null,null,null,null,null,null,null,null,null,null,null,null,null,{"$f":"A270&B270&D270&E270","v":"10"}]
[10,null,null,null,null,{"$f":"SUM(G271:AK271)","v":0},null,null,null,null,null,null,null,null,null,null,null,null,null,null,null,null,null,null,null,null,null,null,null,null,null,null,null,null,null,null,null,{"$f":"A271&B271&D271&E271","v":"10"}]
[10,null,null,null,null,{"$f":"SUM(G272:AK272)","v":0},null,null,null,null,null,null,null,null,null,null,null,null,null,null,null,null,null,null,null,null,null,null,null,null,null,null,null,null,null,null,null,{"$f":"A272&B272&D272&E272","v":"10"}]
[10,null,null,null,null,{"$f":"SUM(G273:AK273)","v":0},null,null,null,null,null,null,null,null,null,null,null,null,null,null,null,null,null,null,null,null,null,null,null,null,null,null,null,null,null,null,null,{"$f":"A273&B273&D273&E273","v":"10"}]
[10,null,null,null,null,{"$f":"SUM(G274:AK274)","v":0},null,null,null,null,null,null,null,null,null,null,null,null,null,null,null,null,null,null,null,null,null,null,null,null,null,null,null,null,null,null,null,{"$f":"A274&B274&D274&E274","v":"10"}]
[10,null,null,null,null,{"$f":"SUM(G275:AK275)","v":0},null,null,null,null,null,null,null,null,null,null,null,null,null,null,null,null,null,null,null,null,null,null,null,null,null,null,null,null,null,null,null,{"$f":"A275&B275&D275&E275","v":"10"}]
[10,null,null,null,null,{"$f":"SUM(G276:AK276)","v":0},null,null,null,null,null,null,null,null,null,null,null,null,null,null,null,null,null,null,null,null,null,null,null,null,null,null,null,null,null,null,null,{"$f":"A276&B276&D276&E276","v":"10"}]
[10,null,null,null,null,{"$f":"SUM(G277:AK277)","v":0},null,null,null,null,null,null,null,null,null,null,null,null,null,null,null,null,null,null,null,null,null,null,null,null,null,null,null,null,null,null,null,{"$f":"A277&B277&D277&E277","v":"10"}]
[10,null,null,null,null,{"$f":"SUM(G278:AK278)","v":0},null,null,null,null,null,null,null,null,null,null,null,null,null,null,null,null,null,null,null,null,null,null,null,null,null,null,null,null,null,null,null,{"$f":"A278&B278&D278&E278","v":"10"}]
[10,null,null,null,null,{"$f":"SUM(G279:AK279)","v":0},null,null,null,null,null,null,null,null,null,null,null,null,null,null,null,null,null,null,null,null,null,null,null,null,null,null,null,null,null,null,null,{"$f":"A279&B279&D279&E279","v":"10"}]
[10,null,null,null,null,{"$f":"SUM(G280:AK280)","v":0},null,null,null,null,null,null,null,null,null,null,null,null,null,null,null,null,null,null,null,null,null,null,null,null,null,null,null,null,null,null,null,{"$f":"A280&B280&D280&E280","v":"10"}]
[10,null,null,null,null,{"$f":"SUM(G281:AK281)","v":0},null,null,null,null,null,null,null,null,null,null,null,null,null,null,null,null,null,null,null,null,null,null,null,null,null,null,null,null,null,null,null,{"$f":"A281&B281&D281&E281","v":"10"}]
[10,null,null,null,null,{"$f":"SUM(G282:AK282)","v":0},null,null,null,null,null,null,null,null,null,null,null,null,null,null,null,null,null,null,null,null,null,null,null,null,null,null,null,null,null,null,null,{"$f":"A282&B282&D282&E282","v":"10"}]
[10,null,null,null,null,{"$f":"SUM(G283:AK283)","v":0},null,null,null,null,null,null,null,null,null,null,null,null,null,null,null,null,null,null,null,null,null,null,null,null,null,null,null,null,null,null,null,{"$f":"A283&B283&D283&E283","v":"10"}]
[10,null,null,null,null,{"$f":"SUM(G284:AK284)","v":0},null,null,null,null,null,null,null,null,null,null,null,null,null,null,null,null,null,null,null,null,null,null,null,null,null,null,null,null,null,null,null,{"$f":"A284&B284&D284&E284","v":"10"}]
[10,null,null,null,null,{"$f":"SUM(G285:AK285)","v":0},null,null,null,null,null,null,null,null,null,null,null,null,null,null,null,null,null,null,null,null,null,null,null,null,null,null,null,null,null,null,null,{"$f":"A285&B285&D285&E285","v":"10"}]
[10,null,null,null,null,{"$f":"SUM(G286:AK286)","v":0},null,null,null,null,null,null,null,null,null,null,null,null,null,null,null,null,null,null,null,null,null,null,null,null,null,null,null,null,null,null,null,{"$f":"A286&B286&D286&E286","v":"10"}]
[10,null,null,null,null,{"$f":"SUM(G287:AK287)","v":0},null,null,null,null,null,null,null,null,null,null,null,null,null,null,null,null,null,null,null,null,null,null,null,null,null,null,null,null,null,null,null,{"$f":"A287&B287&D287&E287","v":"10"}]
[10,null,null,null,null,{"$f":"SUM(G288:AK288)","v":0},null,null,null,null,null,null,null,null,null,null,null,null,null,null,null,null,null,null,null,null,null,null,null,null,null,null,null,null,null,null,null,{"$f":"A288&B288&D288&E288","v":"10"}]
[10,null,null,null,null,{"$f":"SUM(G289:AK289)","v":0},null,null,null,null,null,null,null,null,null,null,null,null,null,null,null,null,null,null,null,null,null,null,null,null,null,null,null,null,null,null,null,{"$f":"A289&B289&D289&E289","v":"10"}]
[10,null,null,null,null,{"$f":"SUM(G290:AK290)","v":0},null,null,null,null,null,null,null,null,null,null,null,null,null,null,null,null,null,null,null,null,null,null,null,null,null,null,null,null,null,null,null,{"$f":"A290&B290&D290&E290","v":"10"}]
[10,null,null,null,null,{"$f":"SUM(G291:AK291)","v":0},null,null,null,null,null,null,null,null,null,null,null,null,null,null,null,null,null,null,null,null,null,null,null,null,null,null,null,null,null,null,null,{"$f":"A291&B291&D291&E291","v":"10"}]
[10,null,null,null,null,{"$f":"SUM(G292:AK292)","v":0},null,null,null,null,null,null,null,null,null,null,null,null,null,null,null,null,null,null,null,null,null,null,null,null,null,null,null,null,null,null,null,{"$f":"A292&B292&D292&E292","v":"10"}]
[10,null,null,null,null,{"$f":"SUM(G293:AK293)","v":0},null,null,null,null,null,null,null,null,null,null,null,null,null,null,null,null,null,null,null,null,null,null,null,null,null,null,null,null,null,null,null,{"$f":"A293&B293&D293&E293","v":"10"}]
[10,null,null,null,null,{"$f":"SUM(G294:AK294)","v":0},null,null,null,null,null,null,null,null,null,null,null,null,null,null,null,null,null,null,null,null,null,null,null,null,null,null,null,null,null,null,null,{"$f":"A294&B294&D294&E294","v":"10"}]
[10,null,null,null,null,{"$f":"SUM(G295:AK295)","v":0},null,null,null,null,null,null,null,null,null,null,null,null,null,null,null,null,null,null,null,null,null,null,null,null,null,null,null,null,null,null,null,{"$f":"A295&B295&D295&E295","v":"10"}]
[10,null,null,null,null,{"$f":"SUM(G296:AK296)","v":0},null,null,null,null,null,null,null,null,null,null,null,null,null,null,null,null,null,null,null,null,null,null,null,null,null,null,null,null,null,null,null,{"$f":"A296&B296&D296&E296","v":"10"}]
[10,null,null,null,null,{"$f":"SUM(G297:AK297)","v":0},null,null,null,null,null,null,null,null,null,null,null,null,null,null,null,null,null,null,null,null,null,null,null,null,null,null,null,null,null,null,null,{"$f":"A297&B297&D297&E297","v":"10"}]
[10,null,null,null,null,{"$f":"SUM(G298:AK298)","v":0},null,null,null,null,null,null,null,null,null,null,null,null,null,null,null,null,null,null,null,null,null,null,null,null,null,null,null,null,null,null,null,{"$f":"A298&B298&D298&E298","v":"10"}]
[10,null,null,null,null,{"$f":"SUM(G299:AK299)","v":0},null,null,null,null,null,null,null,null,null,null,null,null,null,null,null,null,null,null,null,null,null,null,null,null,null,null,null,null,null,null,null,{"$f":"A299&B299&D299&E299","v":"10"}]
[10,null,null,null,null,{"$f":"SUM(G300:AK300)","v":0},null,null,null,null,null,null,null,null,null,null,null,null,null,null,null,null,null,null,null,null,null,null,null,null,null,null,null,null,null,null,null,{"$f":"A300&B300&D300&E300","v":"10"}]
[10,null,null,null,null,{"$f":"SUM(G301:AK301)","v":0},null,null,null,null,null,null,null,null,null,null,null,null,null,null,null,null,null,null,null,null,null,null,null,null,null,null,null,null,null,null,null,{"$f":"A301&B301&D301&E301","v":"10"}]
[10,null,null,null,null,{"$f":"SUM(G302:AK302)","v":0},null,null,null,null,null,null,null,null,null,null,null,null,null,null,null,null,null,null,null,null,null,null,null,null,null,null,null,null,null,null,null,{"$f":"A302&B302&D302&E302","v":"10"}]
[10,null,null,null,null,{"$f":"SUM(G303:AK303)","v":0},null,null,null,null,null,null,null,null,null,null,null,null,null,null,null,null,null,null,null,null,null,null,null,null,null,null,null,null,null,null,null,{"$f":"A303&B303&D303&E303","v":"10"}]
[10,null,null,null,null,{"$f":"SUM(G304:AK304)","v":0},null,null,null,null,null,null,null,null,null,null,null,null,null,null,null,null,null,null,null,null,null,null,null,null,null,null,null,null,null,null,null,{"$f":"A304&B304&D304&E304","v":"10"}]
[10,null,null,null,null,{"$f":"SUM(G305:AK305)","v":0},null,null,null,null,null,null,null,null,null,null,null,null,null,null,null,null,null,null,null,null,null,null,null,null,null,null,null,null,null,null,null,{"$f":"A305&B305&D305&E305","v":"10"}]
[10,null,null,null,null,{"$f":"SUM(G306:AK306)","v":0},null,null,null,null,null,null,null,null,null,null,null,null,null,null,null,null,null,null,null,null,null,null,null,null,null,null,null,null,null,null,null,{"$f":"A306&B306&D306&E306","v":"10"}]
[10,null,null,null,null,{"$f":"SUM(G307:AK307)","v":0},null,null,null,null,null,null,null,null,null,null,null,null,null,null,null,null,null,null,null,null,null,null,null,null,null,null,null,null,null,null,null,{"$f":"A307&B307&D307&E307","v":"10"}]
[10,null,null,null,null,{"$f":"SUM(G308:AK308)","v":0},null,null,null,null,null,null,null,null,null,null,null,null,null,null,null,null,null,null,null,null,null,null,null,null,null,null,null,null,null,null,null,{"$f":"A308&B308&D308&E308","v":"10"}]
[10,null,null,null,null,{"$f":"SUM(G309:AK309)","v":0},null,null,null,null,null,null,null,null,null,null,null,null,null,null,null,null,null,null,null,null,null,null,null,null,null,null,null,null,null,null,null,{"$f":"A309&B309&D309&E309","v":"10"}]
[10,null,null,null,null,{"$f":"SUM(G310:AK310)","v":0},null,null,null,null,null,null,null,null,null,null,null,null,null,null,null,null,null,null,null,null,null,null,null,null,null,null,null,null,null,null,null,{"$f":"A310&B310&D310&E310","v":"10"}]
[10,null,null,null,null,{"$f":"SUM(G311:AK311)","v":0},null,null,null,null,null,null,null,null,null,null,null,null,null,null,null,null,null,null,null,null,null,null,null,null,null,null,null,null,null,null,null,{"$f":"A311&B311&D311&E311","v":"10"}]
[10,null,null,null,null,{"$f":"SUM(G312:AK312)","v":0},null,null,null,null,null,null,null,null,null,null,null,null,null,null,null,null,null,null,null,null,null,null,null,null,null,null,null,null,null,null,null,{"$f":"A312&B312&D312&E312","v":"10"}]
[10,null,null,null,null,{"$f":"SUM(G313:AK313)","v":0},null,null,null,null,null,null,null,null,null,null,null,null,null,null,null,null,null,null,null,null,null,null,null,null,null,null,null,null,null,null,null,{"$f":"A313&B313&D313&E313","v":"10"}]
[10,null,null,null,null,{"$f":"SUM(G314:AK314)","v":0},null,null,null,null,null,null,null,null,null,null,null,null,null,null,null,null,null,null,null,null,null,null,null,null,null,null,null,null,null,null,null,{"$f":"A314&B314&D314&E314","v":"10"}]
[10,null,null,null,null,{"$f":"SUM(G315:AK315)","v":0},null,null,null,null,null,null,null,null,null,null,null,null,null,null,null,null,null,null,null,null,null,null,null,null,null,null,null,null,null,null,null,{"$f":"A315&B315&D315&E315","v":"10"}]
[10,null,null,null,null,{"$f":"SUM(G316:AK316)","v":0},null,null,null,null,null,null,null,null,null,null,null,null,null,null,null,null,null,null,null,null,null,null,null,null,null,null,null,null,null,null,null,{"$f":"A316&B316&D316&E316","v":"10"}]
[10,null,null,null,null,{"$f":"SUM(G317:AK317)","v":0},null,null,null,null,null,null,null,null,null,null,null,null,null,null,null,null,null,null,null,null,null,null,null,null,null,null,null,null,null,null,null,{"$f":"A317&B317&D317&E317","v":"10"}]
[10,null,null,null,null,{"$f":"SUM(G318:AK318)","v":0},null,null,null,null,null,null,null,null,null,null,null,null,null,null,null,null,null,null,null,null,null,null,null,null,null,null,null,null,null,null,null,{"$f":"A318&B318&D318&E318","v":"10"}]
[10,null,null,null,null,{"$f":"SUM(G319:AK319)","v":0},null,null,null,null,null,null,null,null,null,null,null,null,null,null,null,null,null,null,null,null,null,null,null,null,null,null,null,null,null,null,null,{"$f":"A319&B319&D319&E319","v":"10"}]
[10,null,null,null,null,{"$f":"SUM(G320:AK320)","v":0},null,null,null,null,null,null,null,null,null,null,null,null,null,null,null,null,null,null,null,null,null,null,null,null,null,null,null,null,null,null,null,{"$f":"A320&B320&D320&E320","v":"10"}]
[10,null,null,null,null,{"$f":"SUM(G321:AK321)","v":0},null,null,null,null,null,null,null,null,null,null,null,null,null,null,null,null,null,null,null,null,null,null,null,null,null,null,null,null,null,null,null,{"$f":"A321&B321&D321&E321","v":"10"}]
[10,null,null,null,null,{"$f":"SUM(G322:AK322)","v":0},null,null,null,null,null,null,null,null,null,null,null,null,null,null,null,null,null,null,null,null,null,null,null,null,null,null,null,null,null,null,null,{"$f":"A322&B322&D322&E322","v":"10"}]
[10,null,null,null,null,{"$f":"SUM(G323:AK323)","v":0},null,null,null,null,null,null,null,null,null,null,null,null,null,null,null,null,null,null,null,null,null,null,null,null,null,null,null,null,null,null,null,{"$f":"A323&B323&D323&E323","v":"10"}]
[10,null,null,null,null,{"$f":"SUM(G324:AK324)","v":0},null,null,null,null,null,null,null,null,null,null,null,null,null,null,null,null,null,null,null,null,null,null,null,null,null,null,null,null,null,null,null,{"$f":"A324&B324&D324&E324","v":"10"}]
[10,null,null,null,null,{"$f":"SUM(G325:AK325)","v":0},null,null,null,null,null,null,null,null,null,null,null,null,null,null,null,null,null,null,null,null,null,null,null,null,null,null,null,null,null,null,null,{"$f":"A325&B325&D325&E325","v":"10"}]
[10,null,null,null,null,{"$f":"SUM(G326:AK326)","v":0},null,null,null,null,null,null,null,null,null,null,null,null,null,null,null,null,null,null,null,null,null,null,null,null,null,null,null,null,null,null,null,{"$f":"A326&B326&D326&E326","v":"10"}]
[10,null,null,null,null,{"$f":"SUM(G327:AK327)","v":0},null,null,null,null,null,null,null,null,null,null,null,null,null,null,null,null,null,null,null,null,null,null,null,null,null,null,null,null,null,null,null,{"$f":"A327&B327&D327&E327","v":"10"}]
[10,null,null,null,null,{"$f":"SUM(G328:AK328)","v":0},null,null,null,null,null,null,null,null,null,null,null,null,null,null,null,null,null,null,null,null,null,null,null,null,null,null,null,null,null,null,null,{"$f":"A328&B328&D328&E328","v":"10"}]
[10,null,null,null,null,{"$f":"SUM(G329:AK329)","v":0},null,null,null,null,null,null,null,null,null,null,null,null,null,null,null,null,null,null,null,null,null,null,null,null,null,null,null,null,null,null,null,{"$f":"A329&B329&D329&E329","v":"10"}]
[10,null,null,null,null,{"$f":"SUM(G330:AK330)","v":0},null,null,null,null,null,null,null,null,null,null,null,null,null,null,null,null,null,null,null,null,null,null,null,null,null,null,null,null,null,null,null,{"$f":"A330&B330&D330&E330","v":"10"}]
[10,null,null,null,null,{"$f":"SUM(G331:AK331)","v":0},null,null,null,null,null,null,null,null,null,null,null,null,null,null,null,null,null,null,null,null,null,null,null,null,null,null,null,null,null,null,null,{"$f":"A331&B331&D331&E331","v":"10"}]
[10,null,null,null,null,{"$f":"SUM(G332:AK332)","v":0},null,null,null,null,null,null,null,null,null,null,null,null,null,null,null,null,null,null,null,null,null,null,null,null,null,null,null,null,null,null,null,{"$f":"A332&B332&D332&E332","v":"10"}]
[10,null,null,null,null,{"$f":"SUM(G333:AK333)","v":0},null,null,null,null,null,null,null,null,null,null,null,null,null,null,null,null,null,null,null,null,null,null,null,null,null,null,null,null,null,null,null,{"$f":"A333&B333&D333&E333","v":"10"}]
[10,null,null,null,null,{"$f":"SUM(G334:AK334)","v":0},null,null,null,null,null,null,null,null,null,null,null,null,null,null,null,null,null,null,null,null,null,null,null,null,null,null,null,null,null,null,null,{"$f":"A334&B334&D334&E334","v":"10"}]
[10,null,null,null,null,{"$f":"SUM(G335:AK335)","v":0},null,null,null,null,null,null,null,null,null,null,null,null,null,null,null,null,null,null,null,null,null,null,null,null,null,null,null,null,null,null,null,{"$f":"A335&B335&D335&E335","v":"10"}]
[10,null,null,null,null,{"$f":"SUM(G336:AK336)","v":0},null,null,null,null,null,null,null,null,null,null,null,null,null,null,null,null,null,null,null,null,null,null,null,null,null,null,null,null,null,null,null,{"$f":"A336&B336&D336&E336","v":"10"}]
[10,null,null,null,null,{"$f":"SUM(G337:AK337)","v":0},null,null,null,null,null,null,null,null,null,null,null,null,null,null,null,null,null,null,null,null,null,null,null,null,null,null,null,null,null,null,null,{"$f":"A337&B337&D337&E337","v":"10"}]
[10,null,null,null,null,{"$f":"SUM(G338:AK338)","v":0},null,null,null,null,null,null,null,null,null,null,null,null,null,null,null,null,null,null,null,null,null,null,null,null,null,null,null,null,null,null,null,{"$f":"A338&B338&D338&E338","v":"10"}]
[10,null,null,null,null,{"$f":"SUM(G339:AK339)","v":0},null,null,null,null,null,null,null,null,null,null,null,null,null,null,null,null,null,null,null,null,null,null,null,null,null,null,null,null,null,null,null,{"$f":"A339&B339&D339&E339","v":"10"}]
[10,null,null,null,null,{"$f":"SUM(G340:AK340)","v":0},null,null,null,null,null,null,null,null,null,null,null,null,null,null,null,null,null,null,null,null,null,null,null,null,null,null,null,null,null,null,null,{"$f":"A340&B340&D340&E340","v":"10"}]
[10,null,null,null,null,{"$f":"SUM(G341:AK341)","v":0},null,null,null,null,null,null,null,null,null,null,null,null,null,null,null,null,null,null,null,null,null,null,null,null,null,null,null,null,null,null,null,{"$f":"A341&B341&D341&E341","v":"10"}]
[10,null,null,null,null,{"$f":"SUM(G342:AK342)","v":0},null,null,null,null,null,null,null,null,null,null,null,null,null,null,null,null,null,null,null,null,null,null,null,null,null,null,null,null,null,null,null,{"$f":"A342&B342&D342&E342","v":"10"}]
[10,null,null,null,null,{"$f":"SUM(G343:AK343)","v":0},null,null,null,null,null,null,null,null,null,null,null,null,null,null,null,null,null,null,null,null,null,null,null,null,null,null,null,null,null,null,null,{"$f":"A343&B343&D343&E343","v":"10"}]
[10,null,null,null,null,{"$f":"SUM(G344:AK344)","v":0},null,null,null,null,null,null,null,null,null,null,null,null,null,null,null,null,null,null,null,null,null,null,null,null,null,null,null,null,null,null,null,{"$f":"A344&B344&D344&E344","v":"10"}]